Workbook

Sheet F-22 CATAL (2) (hidden)
G1: FORMATO N0. 22
B3: COMISION DE VIVIENDA | C3: CATÁLOGO DE CONCEPTOS, CANTIDADES DE OBRA, PRECIOS UNITARIOS, IMPORTES PARCIALES Y TOTALES DE LA PROPUESTA
B4: DEL ESTADO DE SONORA
C5: FECHA DE PRESENTACIÓN DE LA PROPUESTA:
A6: LICITACIÓN No.:
A7: CONSTRUCCIÓN DE 1 (UNA) VIVIENDA DE 40.01 M2, A BASE DE LOSA DE CIMENTACIÓN, MUROS DE BLOCK, TECHO DE VIGUETA Y BOVEDILLA, INSTALACIONES ELÉCTRICAS, HIDRÁULICAS Y SANITARIAS. EN EL MUNICIPIO DE __________ SONORA.
D10: CANTIDADES DE OBRA, PRECIOS UNITARIOS E IMPORTES
A11: CLAVE | B11: DESCRIPCIÓN | C11: UNIDAD | D11: CANTIDAD | E11: P. UNIT. CON NUMERO | F11: PRECIO UNIT. CON LETRA | G11: IMPORTE | I11: 1 | J11: 35
A13: LOSA DE CIMENTACIÓN | D13: PESOS 00/100 M.N.**
A14: PC-01 | B14: Limpia, trazo y nivelación. | C14: M2 | D14: =+K14 -> 40.01 | E14: =+#REF! ->  | G14: =D14*E14 ->  | I14: 40.01 | J14: 44.56 | K14: =+I14*$I$11 -> 40.01
A15: PC-02 | B15: Excavación a mano en terreno investigado en obra, cualquier profundidad, incluye afine de taludes y acarreo fuera de la obra de material no utilizable. | C15: M3 | D15: =+K15 -> 0.88 | E15: =+#REF! ->  | I15: 0.88 | J15: 9.88 | K15: =+I15*$I$11 -> 0.88
A16: PC-05 | B16: Losa de Cimentación de 9 cm de espesor, a base de concreto F'c=200 kg/cm2; t.m.a. 3/4" hecho en obra; reforzado con malla electrosoldada 6x6-10/10, plantilla de 5 cm de espesor a base de concreto F'c=100 kg/cm2 t.m.a. 3/4", dentellón perimetral e intermedio a base de armex de 15x20 cm; anclaje a base de bastones con varilla 3/8" @ 30 con 40 cm de largo donde se indique en los planos de proyecto, acabado pulido, incluye: fumigacion antitermitas con fumigante aditivo adherente termidor o similar, curado, vibrado, colado y todo lo necesario para su correcta ejecución. | C16: M2 | D16: 40.01 | E16: =+#REF! ->  | I16: 40.01 | J16: 8.91 | K16: 40.01
A17: PC-06 | B17: Impermeabilización a base de producto epóxico color negro aplicado sobre los 12 cm del desplante y 20 cm del espesor de la losa y dentellón perimetral en todo el perímetro, incluye: materiales, mano de obra, herramienta y equipo necesarios para su correcta ejecución. | C17: Ml | D17: 23.12 | E17: =+#REF! ->  | I17: 23.12 | J17: 8.91 | K17: 23.12
A18: PC-07 | B18: Afine, nivelacion y compactacion de terreno natural para desplante de losa de cimentacio, incluye todo lo necesario para su correcta ejecucion. | C18: M2 | D18: 40.01 | E18: =+#REF! ->  | I18: 40.01 | J18: 44.56 | K18: 40.01
D19: LOSA DE CIMENTACIÓN | G19: =+SUM(G14:H18) -> 
A22: MUROS
A23: MC-01 | B23: Construcción de muro de block de 12x20x40 cm junteado con mortero cemento arena proporción 1:4, incluye; Muro de enrase, plomeado, relleno de huecos en contorno de ventanas a base de concreto F´c= 150 kg/cm2 hecho en obra t.m.a. 3/4", materiales, mano de obra, herramienta, equipo, deberá quedar aparente por ambas caras. | C23: M2 | D23: =+K23 -> 74.01 | E23: =+#REF! ->  | G23: =D23*E23 ->  | I23: 74.01 | J23: 79.68 | K23: =+I23*$I$11 -> 74.01
A24: MC-02 | B24: Castillo de concreto F´c=150 kg/cm2 hecho en obra t.m.a. 3/4", 12x12 cm de sección, armado con armex 12x12-4; incluye: cimbra aparente y descimbra; fabricación, colado y curado del concreto; materiales y mano de obra, deberá de quedar con acabado final aparente. | C24: ML | D24: 43.46 | E24: =+#REF! ->  | I24: 43.46 | J24: 43.46 | K24: 43.46
A25: MC-03 | B25: Cadena de cerramiento de concreto F´c=150 kg/cm2 hecho en obra t.m.a. 3/4", 12x20 cm de sección, armada con armex 12X20-4; incluye: cimbra aparente y descimbra; fabricación, colado y curado del concreto; materiales y mano de obra, deberá de quedar con acabado final aparente. | C25: ML | D25: 37.85 | E25: =+#REF! ->  | I25: 37.85 | J25: 40.16 | K25: 37.85
D26: MUROS | G26: =+SUM(G23:H25) -> 
A29: TECHO
A30: CU-01 | B30: Losa aligerada de 15 cm de espesor, a base de bovedilla de poliestireno y vigueta de alma abierta con armadura de acero diseño 10-36 de la marca deacero o similar, con patín de 12 cm de ancho por 5 cm de peralte, colado de capa de compresión de 4 cm con concreto F'c=200 kg/cm2, t.m.a. 3/4", reforzado malla electrosoldada de 6x6-10/10, el concepto incluye: afine de la superficie superior con acabado semipulido para recibir impermeabilización, cimbra y descimbraaparente, volado de concreto armado de 0.19x0.10m, colado, vibrado, curado y todo lo necesario para su correcta ejecución. | C30: M2 | D30: =+K30 -> 41.36 | E30: =+#REF! ->  | G30: =D30*E30 ->  | I30: 41.36 | J30: 46.07 | K30: =+I30*$I$11 -> 41.36
A31: CU-02 | B31: Impermeabilización de losa de azotea a base de impermeabilizante elastomerico marca termoteck o similar de 3 años de garantía,a razón de 1 m2/lt, y tela de refuerzo sencillo, incluye limpieza y preparación de la superficie. | C31: M2 | D31: 41.36 | E31: =+#REF! ->  | I31: 41.36 | J31: 46.07 | K31: 41.36
D32: TECHO | G32: =SUM(G30:H31) -> 
A35: ACABADOS
A36: AC-02 | B36: Sardinel de 10x10 cm a base de concreto hidráulico de F'c=150 kg/cm2 t.m.a. 3/4". Incluye: Herramienta, mano de obra y todo lo necesario para su correcta ejecución. | C36: Ml | D36: =+K36 -> 1.92 | E36: =+#REF! ->  | G36: =D36*E36 ->  | I36: 1.92 | K36: =+I36*$I$11 -> 1.92
A37: AC-03 | B37: Aplanado de yeso en plafones, de 1.5 cm de espesor promedio, a plomo y regla, acabado pulido, reforzada con malla pollera en toda el área incluye: perfilado de aristas y remate en columnas, trabes y muros. | C37: M2 | D37: 35.6 | E37: =+#REF! ->  | I37: 35.6 | K37: 35.6
A38: AC-04 | B38: Suministro y colocación de azulejo de 20x30cm de color blanco de la marca porcelanite o similar asentado con cemento crest o similar, boquilla de 2 mm a base de junta crest anti-hongo o similar. Incluye: Herramienta, mano de obra y todo lo necesario para su correcta ejecución. | C38: M2 | D38: 3.8 | E38: =+#REF! ->  | I38: 3.8 | K38: 3.8
A39: AC-05 | B39: Suministro y colocación de piso antiderrapante de 20x20cm de color blanco de la marca porcelanite o similar asentado con cemento crest o similar, boquilla de 2 mm a base de junta crest anti-hongo o similar. Incluye: Herramienta, mano de obra y todo lo necesario para su correcta ejecución. | C39: M2 | D39: 3.94 | E39: =+#REF! ->  | I39: 3.94 | K39: 3.94
A40: AC-09 | B40: Colocación de placa de cerámica en medidas de 20x20 cm, con cemento crest, en muro de fachada. Incluye; Material, herramienta, mano de obra y todo lo necesario para su correcta ejecución. | C40: Pza | D40: 1 | E40: =+#REF! ->  | I40: 1 | K40: 1
D41: ACABADOS | G41: =+SUM(G36:H40) -> 
A44: PUERTAS Y VENTANAS
A45: PV-01 | B45: Suministro e instalación de puerta tipo multypanel 0.90x2.06m con marco metálico de 0.96x2.10m fabricado a base de perfil tubular M-225., chapa tipo bola con llave para exterior modelo MH52T3 marca fanal o similar acabado en latón brillante para exterior, dos bisagras de 3", pintura esmalte anticorrosivo color blanco en el marco metálico, el concepto incluye perfilado del hueco previo a su colocación con mortero cemento-arena 1:4. Incluye: Herramienta, mano de obra y todo lo necesario para su correcta ejecución. | C45: Pza | D45: =+K45 -> 1 | E45: =+#REF! ->  | G45: =D45*E45 ->  | I45: 1 | J45: 1 | K45: =+I45*$I$11 -> 1
A46: PV-02 | B46: Suministro e instalación de puerta de tambor 0.80x2.06m con marco metálico de 0.86x2.10m fabricado a base de perfil tubular M-225., chapa tipo bola para interior marca fanal o similar, dos bisagras de 3", pintura esmalte anticorrosivo color blanco en el marco metálico, el concepto incluye perfilado del hueco previo a su colocación con mortero cemento-arena 1:4. Incluye: Herramienta, mano de obra y todo lo necesario para su correcta ejecución. | C46: Pza | D46: =+K46 -> 2 | E46: =+#REF! ->  | I46: 2 | J46: 2 | K46: 2
A47: PV-03 | B47: Suministro e instalación de puerta de tambor 0.70x2.06m con marco metálico de 0.76x2.10m fabricado a base de perfil tubular M-225., chapa tipo bola para interior marca fanal o similar, dos bisagras de 3", pintura esmalte anticorrosivo color blanco en el marco metálico, el concepto incluye perfilado del hueco previo a su colocación con mortero cemento-arena 1:4. Incluye: Herramienta, mano de obra y todo lo necesario para su correcta ejecución. | C47: Pza | D47: 1 | E47: =+#REF! ->  | I47: 1 | J47: 1 | K47: 1
A48: PV-04 | B48: Suministro y colocación de ventana corrediza de 0.83x1.05m a base de perfil de aluminio anodizado natural de 1 1/2" con cristal claro de 3mm con un fijo lateral y un corredizo, incluye perfilado del hueco, previo a su colocación a base de mortero cemento-arena proporción 1:4. Incluye: Herramienta, mano de obra y todo lo necesario para su correcta ejecución. | C48: Pza | D48: 3 | E48: =+#REF! ->  | I48: 3 | J48: 3 | K48: 3
A49: PV-05 | B49: Suministro y colocación de ventana corrediza de 0.60x0.40m a base de perfil de aluminio anodizado natural de 1 1/2" con cristal claro de 3mm con un fijo lateral y un corredizo, incluye perfilado del hueco previo a su colocación a base de mortero cemento-arena proporción 1:4. Incluye: Herramienta, mano de obra y todo lo necesario para su correcta ejecución. | C49: Pza | D49: 1 | E49: =+#REF! ->  | I49: 1 | J49: 1 | K49: 1
A50: PV-06 | B50: Suministro e instalación de puerta tipo multypanel 0.80x2.06m con marco metálico de 0.86x2.10m fabricado a base de perfil tubular M-225., chapa tipo bola con llave para exterior modelo MH52T3 marca fanal o similar acabado en latón brillante para exterior, dos bisagras de 3", pintura esmalte anticorrosivo color blanco en el marco metálico, el concepto incluye perfilado del hueco previo a su colocación con mortero cemento-arena 1:4. Incluye: Herramienta, mano de obra y todo lo necesario para su correcta ejecución. | C50: Pza | D50: 1 | E50: =+#REF! ->  | I50: 1 | J50: 1 | K50: 1
D51: PUERTAS Y VENTANAS | G51: =+SUM(G45:H50) ->  | K51: 0
A54: INSTALACIONES ELÉCTRICAS
A55: IE-01 | B55: Suministro y colocación de centro de carga de dos circuitos con una pieza de interruptor sencillo de 1x30 amperes, tubería galvanizada conduit pared delgada de 3/4", el concepto incluye ranurado, resanado con mortero cemento-arena 1:4, prueba del correcto funcionamiento de las instalaciones y todo lo necesario para su correcto funcionamiento. | C55: Pza | D55: =+K55 -> 1 | E55: =+#REF! ->  | G55: =D55*E55 ->  | I55: 1 | J55: 1 | K55: =+I55*$I$11 -> 1
A56: IE-02 | B56: Salida eléctrica para tomacorriente, incluye; Contacto doble, tapa, poliducto eléctrico, cableado, ranurado, sujeción de poliducto, mano de obra y equipo. | C56: Sal | D56: 9 | E56: =+#REF! ->  | I56: 9 | J56: 9 | K56: 9
A57: IE-03 | B57: Salida eléctrica para apagador sencillo, incluye: tapa de una via, poliducto eléctrico naranja reforzado de 1/2", cableado con cable thw #12, ranurado, resanado con mortero cemento-arena 1:4, sujeción de poliducto, mano de obra y equipo. | C57: Sal | D57: 3 | E57: =+#REF! ->  | I57: 3 | J57: 3 | K57: 3
A58: IE-04 | B58: Salida eléctrica para apagador doble, incluye; tapa de dos vías, poliducto eléctrico naranja reforzado de 1/2", cableado con cable thw #12, ranurado, resanado con mortero cemento-arena 1:4, sujeción de poliducto, mano de obra y equipo. | C58: Sal | D58: 2 | E58: =+#REF! ->  | I58: 2 | J58: 2 | K58: 2
A59: IE-05 | B59: Salida eléctrica para lámpara, incluye; cableado con cable thw #12, caja octogonal de 4", con poliducto naranja reforzado de 1/2", cableado, ranurado, resanado con mortero cemento arena 1:4, sujeción de poliducto, mano de obra y equipo. | C59: Sal | D59: 7 | E59: =+#REF! ->  | I59: 7 | J59: 7 | K59: 7
A60: IE-06 | B60: Suministro e instalación de foco fluorescente espiral 23 w. De luz fria con 100 W de iluminacion según proyecto, incluye: la roseta de porcelana de 4" y todo lo necesario para su correcta instalación. | C60: Pza | D60: 7 | E60: =+#REF! ->  | I60: 7 | J60: 7 | K60: 7
D61: INSTALACIONES ELÉCTRICAS | G61: =+SUM(G55:H60) -> 
A64: INSTALACIONES HIDRÁULICAS Y SANITARIAS
A65: IHS-01 | B65: Salidas para instalación sanitaria de 1 1/2", 2" y 4" para ventila, lavabo, sanitario, tarja y regadera, tubería de pvc, conexiones, pegamento, ranurado, resanado con mortero cemento-arena 1:4, pendiente, materiales, mano de obra, herramienta y equipo. | C65: Sal | D65: =+K65 -> 5 | E65: =+#REF! ->  | G65: =D65*E65 ->  | I65: 5 | J65: 5 | K65: =+I65*$I$11 -> 5
A66: IHS-02 | B66: Salidas para instalación hidráulica para regadera agua fría y caliente, lavabo, sanitario, tarja o zinc, con tubería cpvc de 1/2" marca duralon o similar, el concepto incluye: limpieza, conexiones, ranurado, pendiente, materiales, mano de obra, herramienta, equipo, resanado con mortero cemento-arena 1:4, prueba del correcto funcionamiento de las instalaciones y todo lo necesario para su correcto funcionamiento. | C66: Sal | D66: 5 | E66: =+#REF! ->  | I66: 5 | J66: 5 | K66: 5
A67: IHS-03 | B67: Suministro e instalación de sanitario marca lamosa o similar línea económica en color blanco, incluye asiento, pijas, cuello de cera, manguera flexible, llave cromada de 1/2". | C67: Pza | D67: 1 | E67: =+#REF! ->  | I67: 1 | J67: 1 | K67: 1
A68: IHS-04 | B68: Suministro e instalación de lavabo marca lamosa o similar línea económica en color blanco, incluye: Llave mezcladora marca helvex o similar línea económica, patas, soportes, manguera flexible, llave cromada de 1/2", cespol bote. | C68: Pza | D68: 1 | E68: =+#REF! ->  | I68: 1 | J68: 1 | K68: 1
A69: IHS-05 | B69: Suministro e instalación de regadera línea económica incluye brazo y chapetón. | C69: Pza | D69: 1 | E69: =+#REF! ->  | I69: 1 | J69: 1 | K69: 1
A70: IHS-06 | B70: Construcción de registro sanitario de 46x45cm de medida interna, a base de ladrillo recocido común de la región de 7x14x28 cm, junteado con mortero cal-arena 1:5 + 10% de cemento, base y tapa a base de concreto F'c=150 kg/cm2 con t.m.a. 3/4" reforzado con malla electrosoldada 6x6-10/10 el concepto incluye: enjarre interior con mortero cemento-arena 1:3, fabricación y colocación de dos jaladeras para la tapa a base de alambrón de 1/4", con pases a base de poliducto de 1/2". y todo lo necesario para su correcta ejecución. | C70: Pza | D70: 2 | E70: =+#REF! ->  | I70: 2 | J70: 1 | K70: 2
A71: IHS-07 | B71: Suministro e instalación de tinaco de 600 lt de la marca rotoplas o similar con el sistema de 3 capas para garantizar una vida útil de 35 años, con todos los accesorios como jarro de aire, flotador #5, válvula de llenado ¾", multiconector con válvula de esfera, tuerca unión y válvula check, incluye base para nivelar tinaco (detalle plano), la alimentación hidráulica por medio de tubería cpvc de 1/2" y todo lo necesario para su correcto funcionamiento. | C71: Pza | D71: 1 | E71: =+#REF! ->  | I71: 1 | J71: 1 | K71: 1
A72: IHS-08 | B72: Suministro e instalación de lavadero doble de empotrar, el concepto incluye; firme de concreto sencillo, murete de block de 12x20x40 cm, la salida sanitaria con tubería pvc de 2" y la salida hidráulica con tubería cpvc de 1/2", llave de jardín de 1/2", resanado con mortero cemento-arena 1:4 y todo lo necesario para su correcto funcionamiento. | C72: Pza | D72: 1 | E72: =+#REF! ->  | I72: 1 | J72: 1 | K72: 1
D73: INSTALACIONES HIDRÁULICAS Y SANITARIAS | G73: =+SUM(G65:H72) -> 
A76: TOTAL DE PRESUPUESTO ** | D76: TOTAL DE PRESUPUESTO | G76: =+G73+G61+G51+G41+G32+G26+G19 -> 

Sheet PRE 159 (hidden)
A1: Capítulo | B1: - | D1: TERMINACION DE 159(CIENTO CINCUENTA Y NUEVE) RECAMARA ADICIONALES DE 16.65 M2 URBANA A BASE DE LOSA DE CIMENTACIÓN, MUROS DE BLOCK, TECHO DE VIGUETA E INSTALACIONES ELÉCTRICAS, EN VARIAS LOCALIDADES DE LOS MUNICIPIOS ETCHOJOA Y HERMOSILLO DE SONORA.
A2: Subcapítulo | B2: - | C2: 1.- | D2: LOSA DE CIMENTACION
A3: Concepto | C3: PC-01U | D3: Limpia, trazo y nivelación. | E3: M2 | F3: 821.09
A4: Concepto | C4: PC-02U | D4: Excavación a mano en terreno investigado en obra, cualquier profundidad, incluye afine de taludes y acarreo fuera de la obra de material no utilizable. | E4: M3 | F4: 12.81
A5: Concepto | C5: PC-05U | D5: Losa de Cimentación de 9 cm de espesor, a base de concreto F'c=200 kg/cm2; t.m.a. 3/4" hecho en obra; reforzado con malla electrosoldada 6x6-10/10, plantilla de 5 cm de espesor a base de concreto F'c=100 kg/cm2 t.m.a. 3/4", dentellón perimetral e intermedio a base de armex de 15x20 cm; anclaje a base de bastones con varilla corrugada 3/8" grado 42 o 5/16 DA 6000 @ 30 con 40 cm de largo donde se indique en los planos de proyecto, acabado pulido, incluye: fumigacion antitermitas con fumigante aditivo adherente termidor o similar, curado, vibrado, colado y todo lo necesario para su correcta ejecución. | E5: M2 | F5: 821.09
A6: Concepto | C6: PC-06U | D6: Impermeabilización a base de producto epóxico color negro aplicado sobre los 12 cm del desplante y 9 cm del espesor de la losa en todo el perímetro, incluye: materiales, mano de obra, herramienta y equipo necesarios para su correcta ejecución. | E6: Ml | F6: 941.06
A7: Subcapítulo | B7: - | C7: 2.- | D7: ALBAÑILERIA
A8: Concepto | C8: MC-01U | D8: Construcción de muro de block de 12x20x40 cm junteado con mortero cemento arena proporción 1:4, incluye; plomeado, relleno de huecos en contorno de ventanas a base de concreto F´c= 150 kg/cm2 hecho en obra t.m.a. 3/4", materiales, mano de obra, herramienta, equipo, deberá quedar acabado comun. | E8: M2 | F8: 2222.23
A9: Concepto | C9: MC-02U | D9: Castillo K-1 de concreto F´c=150 kg/cm2 hecho en obra t.m.a. 3/4", 12x12 cm de sección, armado con armex 12x12-4; incluye: cimbra aparente y descimbra; fabricación, colado y curado del concreto; materiales y mano de obra, deberá de quedar con acabado final aparente. | E9: Ml | F9: 691.41
A10: Concepto | C10: MC-02UA | D10: Castillo K-2 ahogados de 2.50 ML de altura incluye el pretil, con concreto F´c=150 kg/cm2 hecho en obra t.m.a. 3/4", con una varilla corrugada de refuerzo de 3/8"; armado, colado y vibrado del concreto; materiales y mano de obra,. | E10: Ml | F10: 693.7
A11: Concepto | C11: MC-03U | D11: Cadena de cerramiento de concreto F´c=150 kg/cm2 hecho en obra t.m.a. 3/4", 12x20 cm de sección, armada con armex 12X20-4; incluye: cimbra aparente y descimbra; fabricación, colado y curado del concreto; materiales y mano de obra, deberá de quedar con acabado final aparente. | E11: Ml | F11: 1272.18
A12: Subcapítulo | B12: - | C12: 3.- | D12: CUBIERTA
A13: Concepto | C13: CU-01U | D13: Losa aligerada de 16 cm de espesor, a base de bovedilla de poliestireno y vigueta de alma abierta con armadura de acero diseño 10-36 de la marca deacero o similar, con patín de 12 cm de ancho por 5 cm de peralte, colado de capa de compresión de 4 cm con concreto F'c=200 kg/cm2, t.m.a. 3/4", reforzado malla electrosoldada de 6x6-10/10, el concepto incluye: afine de la superficie superior con acabado semipulido para recibir impermeabilización, cimbra y descimbra aparente, colado, vibrado, curado y todo lo necesario para su correcta ejecución. Para la ejecucion de este concepto el beneficiario aportara el importe de 4,000 pesos en la compra de los materiales alambre recocido, curacreto, malla electrosoldada 6x6 - 10/10, Vigueta alma abierta con armadura 12-36 y Bovedilla de poliestireno de 61x122 x11 cms de espesor; volado de 15x10 cms armado con varilla longitudinal de 3/8" y bastones de 40 cms de longitud a cada 30 cms y gotero a base de tuino de madera de 1" (2.54 cms) | E13: M2 | F13: 1438.01
A14: Concepto | C14: CU-02U | D14: Impermeabilización de losa de azotea a base de impermeabilizante elastomerico de 3 años de garantía,a razón de 1 m2/lt, y tela reforzada, incluye: 3 manos de impermeabilizante , limpieza y preparación de la superficie. | E14: M2 | F14: 2715.25
A15: Subcapítulo | B15: - | C15: 4.- | D15: ACABADOS
A16: Concepto | C16: AC-03U | D16: Aplanado de yeso en plafones, de 1.5 cm de espesor promedio, a plomo y regla, acabado pulido, reforzada con malla pollera en toda el área incluye: perfilado de aristas y remate en columnas, trabes y muros. | E16: M2 | F16: 1376.39
A17: Concepto | C17: AC-14U | D17: Pintura vinílica lavable en muros exteriores, interiores y plafond de yeso, incluye: material, limpieza, rebabeado, preparación de la superficie, aplicación de sellador vinílico y dos manos de pintura. | E17: M2 | F17: 14488.67
A18: Concepto | C18: AC-13UA | D18: Aplanado grueso en muros exteriores e interiroes a base de mortero cemento arena 1:4 en un espesor minimo de 1.5 cms , y terminado fino floteado con mortero cemento-arena 1:3 incluye: perfilado de aristas, remates, material, mano de obra y emboquillado. | E18: m2 | F18: 12165.33
A19: Subcapítulo | B19: - | C19: 5.- | D19: PUERTAS Y VENTANAS
A20: Concepto | C20: PV-04U | D20: Suministro y colocación de ventana corrediza de 0.83x1.05m a base de perfil de aluminio anodizado natural de 1 1/2" con cristal claro de 3mm con un fijo lateral y un corredizo, incluye: perfilado del hueco, previo a su colocación a base de mortero cemento-arena proporción 1:4. silicon, Herramienta, mano de obra y todo lo necesario para su correcta ejecución. | E20: Pza | F20: 109
A21: Concepto | C21: PV-01U | D21: Suministro e instalación de puerta de 0.90x2.06 mts, tipo multypanel lisa, fabricado con hoja de acero liso galvanizado cal. 28, con bastidor de madera de pino estufado, terminado en color blanco, relleno de esouma rigida de poliuretano con una densidad de 32 a 34 kg/m3 .,incluye marco metálico de 0.96x2.10m fabricado a base de perfil tubular M-225, chapa tipo bola con llave para exterior modelo MH52T3 marca fanal o similar acabado en latón brillante para exterior, dos bisagras de 3", pintura esmalte anticorrosivo color blanco, perfilado del hueco previo a su colocación con mortero cemento-arena 1:4. Herramienta, mano de obra y todo lo necesario para su correcta ejecución. | E21: Pza | F21: 116
A22: Subcapítulo | B22: - | C22: 6.- | D22: INSTALACIONES ELECTRICAS
A23: Concepto | C23: IE-02U | D23: Salida eléctrica para tomacorriente, incluye; Contacto doble, tapa, poliducto eléctrico, cableado, ranurado, sujeción de poliducto, mano de obra y equipo. | E23: Sal | F23: 104
A24: Concepto | C24: IE-03U | D24: Salida eléctrica para apagador sencillo de palanca color marfil marca leviton o similar, incluye: tapa de una via, poliducto eléctrico naranja reforzado de 1/2", cableado con cable thw #12, ranurado, resanado con mortero cemento-arena 1:4, sujeción de poliducto, mano de obra y equipo. | E24: Sal | F24: 104
A25: Concepto | C25: IE-05U | D25: Salida eléctrica para lámpara, incluye; cableado con cable thw #12, caja octogonal de 4", con poliducto naranja reforzado de 1/2", cableado, ranurado, resanado con mortero cemento arena 1:4, sujeción de poliducto, mano de obra y equipo. | E25: Sal | F25: 104
A26: Concepto | C26: IE-06U | D26: Suministro de foco fluorescente espiral 23 w. De luz fria con 100 W de iluminacion según proyecto, | E26: Pza | F26: 159
A27: Concepto | C27: IE-07U | D27: Alimentación eléctrica de la vivienda existente a la recamara adicional para una distancia maxima de 6 mts el concepto incluye; poliducto naranja reforzado, cable thw #12, prueba del funcionamiento de las instalaciones y todo lo necesario para su correcta ejecucion. | E27: Sal, | F27: 159

Sheet PRE (hidden)
A1: Capítulo | B1: - | D1: TERMINACION DE 69(SESENTA Y NUEVE) RECAMARA ADICIONALES DE 16.65 M2 URBANA A BASE DE LOSA DE CIMENTACIÓN, MUROS DE BLOCK, TECHO DE VIGUETA E INSTALACIONES ELÉCTRICAS, EN LA OCALIDAD DE CUMPAS, SONORA.
A2: Subcapítulo | B2: - | C2: 1.- | D2: LOSA DE CIMENTACION
A3: Concepto | C3: PC-01U | D3: Limpia, trazo y nivelación. | E3: M2 | F3: 299.7 | I3: =+F3/69 -> 4.343478261 | J3: =+F3/[4]Hoja1!F3 -> 18
A4: Concepto | C4: PC-02U | D4: Excavación a mano en terreno investigado en obra, cualquier profundidad, incluye afine de taludes y acarreo fuera de la obra de material no utilizable. | E4: M3 | F4: 4.68 | I4: =+F4/69 -> 0.06782608696 | J4: =+F4/[4]Hoja1!F4 -> 18
A5: Concepto | C5: PC-05U | D5: Losa de Cimentación de 9 cm de espesor, a base de concreto F'c=200 kg/cm2; t.m.a. 3/4" hecho en obra; reforzado con malla electrosoldada 6x6-10/10, plantilla de 5 cm de espesor a base de concreto F'c=100 kg/cm2 t.m.a. 3/4", dentellón perimetral e intermedio a base de armex de 15x20 cm; anclaje a base de bastones con varilla corrugada 3/8" grado 42 o 5/16 DA 6000 @ 30 con 40 cm de largo donde se indique en los planos de proyecto, acabado pulido, incluye: fumigacion antitermitas con fumigante aditivo adherente termidor o similar, curado, vibrado, colado y todo lo necesario para su correcta ejecución. | E5: M2 | F5: 299.7 | I5: 4.343478261 | J5: =+F5/[4]Hoja1!F5 -> 18
A6: Concepto | C6: PC-06U | D6: Impermeabilización a base de producto epóxico color negro aplicado sobre los 12 cm del desplante y 9 cm del espesor de la losa en todo el perímetro, incluye: materiales, mano de obra, herramienta y equipo necesarios para su correcta ejecución. | E6: Ml | F6: 251.64 | I6: 3.646956522 | J6: =+F6/[4]Hoja1!F6 -> 18
A7: Subcapítulo | B7: - | C7: 2.- | D7: ALBAÑILERIA | I7: 0
A8: Concepto | C8: MC-01U | D8: Construcción de muro de block de 12x20x40 cm junteado con mortero cemento arena proporción 1:4, incluye; plomeado, relleno de huecos en contorno de ventanas a base de concreto F´c= 150 kg/cm2 hecho en obra t.m.a. 3/4", materiales, mano de obra, herramienta, equipo, deberá quedar acabado comun. | E8: M2 | F8: 1315.49 | I8: 19.06507246 | J8: =+F8/[4]Hoja1!F8 -> 41.03 | K8: 1220.86 | L8: =+[4]Hoja1!F8 -> 32.06 | M8: 2.95153223 | N8: =+L8*M8 -> 94.62612329 | O8: =+K8+N8 -> 1315.486123
A9: Concepto | C9: MC-02U | D9: Castillo K-1 de concreto F´c=150 kg/cm2 hecho en obra t.m.a. 3/4", 12x12 cm de sección, armado con armex 12x12-4; incluye: cimbra aparente y descimbra; fabricación, colado y curado del concreto; materiales y mano de obra, deberá de quedar con acabado final aparente. | E9: Ml | F9: 479.74 | I9: 6.952753623 | J9: =+F9/[4]Hoja1!F9 -> 52.95 | K9: 453 | L9: =+[4]Hoja1!F9 -> 9.06 | M9: =+M8 -> 2.95153223 | N9: =+L9*M9 -> 26.740882 | O9: =+K9+N9 -> 479.740882
A10: Concepto | C10: MC-02UA | D10: Castillo K-2 ahogados de 2.50 ML de altura incluye el pretil, con concreto F´c=150 kg/cm2 hecho en obra t.m.a. 3/4", con una varilla corrugada de refuerzo de 3/8"; armado, colado y vibrado del concreto; materiales y mano de obra,. | E10: Ml | F10: 418.12 | I10: 6.059710145 | J10: =+F10/[4]Hoja1!F10 -> 46 | K10: 399.96 | L10: =+[4]Hoja1!F10 -> 9.09 | M10: 2 | N10: =+L10*M10 -> 18.18 | O10: =+K10+N10 -> 418.14
A11: Concepto | C11: MC-03U | D11: Cadena de cerramiento de concreto F´c=150 kg/cm2 hecho en obra t.m.a. 3/4", 12x20 cm de sección, armada con armex 12X20-4; incluye: cimbra aparente y descimbra; fabricación, colado y curado del concreto; materiales y mano de obra, deberá de quedar con acabado final aparente. | E11: Ml | F11: 1013.76 | I11: 14.69217391 | J11: =+F11/[4]Hoja1!F11 -> 64 | K11: 982.08 | L11: =+[4]Hoja1!F11 -> 15.84 | M11: 2 | N11: =+L11*M11 -> 31.68 | O11: =+K11+N11 -> 1013.76
A12: Subcapítulo | B12: - | C12: 3.- | D12: CUBIERTA | I12: 0
A13: Concepto | C13: CU-01U | D13: Losa aligerada de 16 cm de espesor, a base de bovedilla de poliestireno y vigueta de alma abierta con armadura de acero diseño 10-36 de la marca deacero o similar, con patín de 12 cm de ancho por 5 cm de peralte, colado de capa de compresión de 4 cm con concreto F'c=200 kg/cm2, t.m.a. 3/4", reforzado malla electrosoldada de 6x6-10/10, el concepto incluye: afine de la superficie superior con acabado semipulido para recibir impermeabilización, cimbra y descimbra aparente, colado, vibrado, curado y todo lo necesario para su correcta ejecución. Para la ejecucion de este concepto el beneficiario aportara el importe de 4,000 pesos en la compra de los materiales alambre recocido, curacreto, malla electrosoldada 6x6 - 10/10, Vigueta alma abierta con armadura 12-36 y Bovedilla de poliestireno de 61x122 x11 cms de espesor; volado de 15x10 cms armado con varilla longitudinal de 3/8" y bastones de 40 cms de longitud a cada 30 cms y gotero a base de tuino de madera de 1" (2.54 cms) | E13: M2 | F13: 1190.94 | I13: 17.26 | J13: =+F13/[4]Hoja1!F13 -> 69
A14: Concepto | C14: CU-02U | D14: Impermeabilización de losa de azotea a base de impermeabilizante elastomerico de 3 años de garantía,a razón de 1 m2/lt, y tela reforzada, incluye: 3 manos de impermeabilizante , limpieza y preparación de la superficie. | E14: M2 | F14: 1190.94 | I14: 17.26 | J14: =+F14/[4]Hoja1!F14 -> 69
A15: Subcapítulo | B15: - | C15: 4.- | D15: ACABADOS | I15: 0
A16: Concepto | C16: AC-03U | D16: Aplanado de yeso en plafones, de 1.5 cm de espesor promedio, a plomo y regla, acabado pulido, reforzada con malla pollera en toda el área incluye: perfilado de aristas y remate en columnas, trabes y muros. | E16: M2 | F16: 1017.75 | I16: 14.75 | J16: =+F16/[4]Hoja1!F16 -> 69
A17: Concepto | C17: AC-14U | D17: Pintura vinílica lavable en muros exteriores, interiores y plafond de yeso, incluye: material, limpieza, rebabeado, preparación de la superficie, aplicación de sellador vinílico y dos manos de pintura. | E17: M2 | F17: 6354.9 | I17: 92.1 | J17: =+F17/[4]Hoja1!F17 -> 69
A18: Concepto | C18: AC-13UA | D18: Aplanado grueso en muros exteriores e interiroes a base de mortero cemento arena 1:4 en un espesor minimo de 1.5 cms , y terminado fino floteado con mortero cemento-arena 1:3 incluye: perfilado de aristas, remates, material, mano de obra y emboquillado. | E18: m2 | F18: 5337.15 | I18: 77.35 | J18: =+F18/[4]Hoja1!F18 -> 69
A19: Subcapítulo | B19: - | C19: 5.- | D19: PUERTAS Y VENTANAS | I19: 0
A20: Concepto | C20: PV-04U | D20: Suministro y colocación de ventana corrediza de 0.83x1.05m a base de perfil de aluminio anodizado natural de 1 1/2" con cristal claro de 3mm con un fijo lateral y un corredizo, incluye: perfilado del hueco, previo a su colocación a base de mortero cemento-arena proporción 1:4. silicon, Herramienta, mano de obra y todo lo necesario para su correcta ejecución. | E20: Pza | F20: 69 | I20: 1 | J20: =+F20/[4]Hoja1!F20 -> 69
A21: Concepto | C21: PV-01U | D21: Suministro e instalación de puerta de 0.90x2.06 mts, tipo multypanel lisa, fabricado con hoja de acero liso galvanizado cal. 28, con bastidor de madera de pino estufado, terminado en color blanco, relleno de esouma rigida de poliuretano con una densidad de 32 a 34 kg/m3 .,incluye marco metálico de 0.96x2.10m fabricado a base de perfil tubular M-225, chapa tipo bola con llave para exterior modelo MH52T3 marca fanal o similar acabado en latón brillante para exterior, dos bisagras de 3", pintura esmalte anticorrosivo color blanco, perfilado del hueco previo a su colocación con mortero cemento-arena 1:4. Herramienta, mano de obra y todo lo necesario para su correcta ejecución. | E21: Pza | F21: 69 | I21: 1 | J21: =+F21/[4]Hoja1!F21 -> 69
A22: Subcapítulo | B22: - | C22: 6.- | D22: INSTALACIONES ELECTRICAS | I22: 0
A23: Concepto | C23: IE-02U | D23: Salida eléctrica para tomacorriente, incluye; Contacto doble, tapa, poliducto eléctrico, cableado, ranurado, sujeción de poliducto, mano de obra y equipo. | E23: Sal | F23: 69 | I23: 1 | J23: =+F23/[4]Hoja1!F23 -> 69
A24: Concepto | C24: IE-03U | D24: Salida eléctrica para apagador sencillo de palanca color marfil marca leviton o similar, incluye: tapa de una via, poliducto eléctrico naranja reforzado de 1/2", cableado con cable thw #12, ranurado, resanado con mortero cemento-arena 1:4, sujeción de poliducto, mano de obra y equipo. | E24: Sal | F24: 69 | I24: 1 | J24: =+F24/[4]Hoja1!F24 -> 69
A25: Concepto | C25: IE-05U | D25: Salida eléctrica para lámpara, incluye; cableado con cable thw #12, caja octogonal de 4", con poliducto naranja reforzado de 1/2", cableado, ranurado, resanado con mortero cemento arena 1:4, sujeción de poliducto, mano de obra y equipo. | E25: Sal | F25: 69 | I25: 1 | J25: =+F25/[4]Hoja1!F25 -> 69
A26: Concepto | C26: IE-06U | D26: Suministro de foco fluorescente espiral 23 w. De luz fria con 100 W de iluminacion según proyecto, | E26: Pza | F26: 69 | I26: 1 | J26: =+F26/[4]Hoja1!F26 -> 69
A27: Concepto | C27: IE-07U | D27: Alimentación eléctrica de la vivienda existente a la recamara adicional para una distancia maxima de 6 mts el concepto incluye; poliducto naranja reforzado, cable thw #12, prueba del funcionamiento de las instalaciones y todo lo necesario para su correcta ejecucion. | E27: Sal, | F27: 69 | I27: 1 | J27: =+F27/[4]Hoja1!F27 -> 69

Sheet PRE (2) (hidden)
A1: Capítulo | B1: - | D1: TERMINACION DE 25(VEINTICINCO) RECAMARA ADICIONALES DE 16.65 M2 URBANA A BASE DE LOSA DE CIMENTACIÓN, MUROS DE BLOCK, TECHO DE VIGUETA E INSTALACIONES ELÉCTRICAS, EN LA OCALIDAD DE HUASABAS, SONORA.
A2: Subcapítulo | B2: - | C2: 1.- | D2: LOSA DE CIMENTACION
A3: Concepto | C3: PC-01U | D3: Limpia, trazo y nivelación. | E3: M2 | F3: 0 | I3: 16.65
A4: Concepto | C4: PC-02U | D4: Excavación a mano en terreno investigado en obra, cualquier profundidad, incluye afine de taludes y acarreo fuera de la obra de material no utilizable. | E4: M3 | F4: 0 | I4: 0.26
A5: Concepto | C5: PC-05U | D5: Losa de Cimentación de 9 cm de espesor, a base de concreto F'c=200 kg/cm2; t.m.a. 3/4" hecho en obra; reforzado con malla electrosoldada 6x6-10/10, plantilla de 5 cm de espesor a base de concreto F'c=100 kg/cm2 t.m.a. 3/4", dentellón perimetral e intermedio a base de armex de 15x20 cm; anclaje a base de bastones con varilla corrugada 3/8" grado 42 o 5/16 DA 6000 @ 30 con 40 cm de largo donde se indique en los planos de proyecto, acabado pulido, incluye: fumigacion antitermitas con fumigante aditivo adherente termidor o similar, curado, vibrado, colado y todo lo necesario para su correcta ejecución. | E5: M2 | F5: 0 | I5: 16.65
A6: Concepto | C6: PC-06U | D6: Impermeabilización a base de producto epóxico color negro aplicado sobre los 12 cm del desplante y 9 cm del espesor de la losa en todo el perímetro, incluye: materiales, mano de obra, herramienta y equipo necesarios para su correcta ejecución. | E6: Ml | F6: 0 | I6: 13.98
A7: Subcapítulo | B7: - | C7: 2.- | D7: ALBAÑILERIA
A8: Concepto | C8: MC-01U | D8: Construcción de muro de block de 12x20x40 cm junteado con mortero cemento arena proporción 1:4, incluye; plomeado, relleno de huecos en contorno de ventanas a base de concreto F´c= 150 kg/cm2 hecho en obra t.m.a. 3/4", materiales, mano de obra, herramienta, equipo, deberá quedar acabado comun. | E8: M2 | F8: 0 | I8: 32.06
A9: Concepto | C9: MC-02U | D9: Castillo K-1 de concreto F´c=150 kg/cm2 hecho en obra t.m.a. 3/4", 12x12 cm de sección, armado con armex 12x12-4; incluye: cimbra aparente y descimbra; fabricación, colado y curado del concreto; materiales y mano de obra, deberá de quedar con acabado final aparente. | E9: Ml | F9: 0 | I9: 9.06
A10: Concepto | C10: MC-02UA | D10: Castillo K-2 ahogados de 2.50 ML de altura incluye el pretil, con concreto F´c=150 kg/cm2 hecho en obra t.m.a. 3/4", con una varilla corrugada de refuerzo de 3/8"; armado, colado y vibrado del concreto; materiales y mano de obra,. | E10: Ml | F10: 0 | I10: 9.09
A11: Concepto | C11: MC-03U | D11: Cadena de cerramiento de concreto F´c=150 kg/cm2 hecho en obra t.m.a. 3/4", 12x20 cm de sección, armada con armex 12X20-4; incluye: cimbra aparente y descimbra; fabricación, colado y curado del concreto; materiales y mano de obra, deberá de quedar con acabado final aparente. | E11: Ml | F11: 0 | I11: 15.84
A12: Subcapítulo | B12: - | C12: 3.- | D12: CUBIERTA
A13: Concepto | C13: CU-01U | D13: Losa aligerada de 16 cm de espesor, a base de bovedilla de poliestireno y vigueta de alma abierta con armadura de acero diseño 10-36 de la marca deacero o similar, con patín de 12 cm de ancho por 5 cm de peralte, colado de capa de compresión de 4 cm con concreto F'c=200 kg/cm2, t.m.a. 3/4", reforzado malla electrosoldada de 6x6-10/10, el concepto incluye: afine de la superficie superior con acabado semipulido para recibir impermeabilización, cimbra y descimbra aparente, colado, vibrado, curado y todo lo necesario para su correcta ejecución. Para la ejecucion de este concepto el beneficiario aportara el importe de 4,000 pesos en la compra de los materiales alambre recocido, curacreto, malla electrosoldada 6x6 - 10/10, Vigueta alma abierta con armadura 12-36 y Bovedilla de poliestireno de 61x122 x11 cms de espesor; volado de 15x10 cms armado con varilla longitudinal de 3/8" y bastones de 40 cms de longitud a cada 30 cms y gotero a base de tuino de madera de 1" (2.54 cms) | E13: M2 | F13: =+L13 -> 81.47 | I13: 17.26 | K13: 4.72 | L13: =+I13*K13 -> 81.4672
A14: Concepto | C14: CU-02U | D14: Impermeabilización de losa de azotea a base de impermeabilizante elastomerico de 3 años de garantía,a razón de 1 m2/lt, y tela reforzada, incluye: 3 manos de impermeabilizante , limpieza y preparación de la superficie. | E14: M2 | F14: 431.5 | I14: 17.26 | J14: =+F14/I14 -> 25
A15: Concepto | C15: CU-03U | D15: Fabricacion de entortado a base de mortero cemento-arena 1:3 con gravilla en un espesor promedio de 4 cms. , terminado fino para recibir impermeabilizacion el concepto incluye: Aditivo tipo Darahuel o similar, fibra de polipropileno, materiales, mano de obra, equipo y todo lo necesario para su correcta ejecucion. | E15: M2 | F15: 431.5 | I15: 17.26 | J15: =+F15/I15 -> 25
A16: Concepto | C16: CU-04U | D16: Fabricacion de chaflan de 2.54 cm (1") a base de mortero cemento - arena 1:3 el concepto incluye aditivo darahuel o similar, materiales, mano de obra, herramienta, equipo y todo lo necesario para su correcta ejecucion. | E16: ML | F16: 103.09 | I16: =102.5/25 -> 4.1 | J16: =+F16/I16 -> 25.14390244
A17: Subcapítulo | B17: - | C17: 4.- | D17: ACABADOS
A18: Concepto | C18: AC-03U | D18: Aplanado de yeso en plafones, de 1.5 cm de espesor promedio, a plomo y regla, acabado pulido, reforzada con malla pollera en toda el área incluye: perfilado de aristas y remate en columnas, trabes y muros. | E18: M2 | F18: 368.75 | I18: 14.75 | J18: =+F18/I18 -> 25
A19: Concepto | C19: AC-14U | D19: Pintura vinílica lavable en muros exteriores, interiores y plafond de yeso, incluye: material, limpieza, rebabeado, preparación de la superficie, aplicación de sellador vinílico y dos manos de pintura. | E19: M2 | F19: 2302.5 | I19: 92.1 | J19: 25
A20: Concepto | C20: AC-13UA | D20: Aplanado grueso en muros exteriores e interiroes a base de mortero cemento arena 1:4 en un espesor minimo de 1.5 cms , y terminado fino floteado con mortero cemento-arena 1:3 incluye: perfilado de aristas, remates, material, mano de obra y emboquillado. | E20: m2 | F20: 1933.75 | I20: 77.35 | J20: 25
A21: Subcapítulo | B21: - | C21: 5.- | D21: PUERTAS Y VENTANAS
A22: Concepto | C22: PV-04U | D22: Suministro y colocación de ventana corrediza de 0.83x1.05m a base de perfil de aluminio anodizado natural de 1 1/2" con cristal claro de 3mm con un fijo lateral y un corredizo, incluye: perfilado del hueco, previo a su colocación a base de mortero cemento-arena proporción 1:4. silicon, Herramienta, mano de obra y todo lo necesario para su correcta ejecución. | E22: Pza | F22: 15 | I22: 1 | J22: 15
A23: Concepto | C23: PV-01U | D23: Suministro e instalación de puerta de 0.90x2.06 mts, tipo multypanel lisa, fabricado con hoja de acero liso galvanizado cal. 28, con bastidor de madera de pino estufado, terminado en color blanco, relleno de esouma rigida de poliuretano con una densidad de 32 a 34 kg/m3 .,incluye marco metálico de 0.96x2.10m fabricado a base de perfil tubular M-225, chapa tipo bola con llave para exterior modelo MH52T3 marca fanal o similar acabado en latón brillante para exterior, dos bisagras de 3", pintura esmalte anticorrosivo color blanco, perfilado del hueco previo a su colocación con mortero cemento-arena 1:4. Herramienta, mano de obra y todo lo necesario para su correcta ejecución. | E23: Pza | F23: 20 | I23: 1 | J23: 20
A24: Subcapítulo | B24: - | C24: 6.- | D24: INSTALACIONES ELECTRICAS
A25: Concepto | C25: IE-02U | D25: Salida eléctrica para tomacorriente, incluye; Contacto doble, tapa, poliducto eléctrico, cableado, ranurado, sujeción de poliducto, mano de obra y equipo. | E25: Sal | F25: 25 | I25: 1 | J25: 25
A26: Concepto | C26: IE-03U | D26: Salida eléctrica para apagador sencillo de palanca color marfil marca leviton o similar, incluye: tapa de una via, poliducto eléctrico naranja reforzado de 1/2", cableado con cable thw #12, ranurado, resanado con mortero cemento-arena 1:4, sujeción de poliducto, mano de obra y equipo. | E26: Sal | F26: 25 | I26: 1 | J26: 25
A27: Concepto | C27: IE-05U | D27: Salida eléctrica para lámpara, incluye; cableado con cable thw #12, caja octogonal de 4", con poliducto naranja reforzado de 1/2", cableado, ranurado, resanado con mortero cemento arena 1:4, sujeción de poliducto, mano de obra y equipo. | E27: Sal | F27: 25 | I27: 1 | J27: 25
A28: Concepto | C28: IE-06U | D28: Suministro de foco fluorescente espiral 23 w. De luz fria con 100 W de iluminacion según proyecto, | E28: Pza | F28: 25 | I28: 1 | J28: 25
A29: Concepto | C29: IE-07U | D29: Alimentación eléctrica de la vivienda existente a la recamara adicional para una distancia maxima de 6 mts el concepto incluye; poliducto naranja reforzado, cable thw #12, prueba del funcionamiento de las instalaciones y todo lo necesario para su correcta ejecucion. | E29: Sal, | F29: 25 | I29: 1 | J29: 25

Sheet F-22 CATAL
G1: FORMATO N0. 22
B3: COMISION DE VIVIENDA | C3: CATÁLOGO DE CONCEPTOS, CANTIDADES DE OBRA, PRECIOS UNITARIOS, IMPORTES PARCIALES Y TOTALES DE LA PROPUESTA
B4: DEL ESTADO DE SONORA
C5: FECHA DE PRESENTACIÓN DE LA PROPUESTA: | G5: =IF(+datos!B10="","",+datos!B10) -> 
A6: =CONCATENATE("LICITACIÓN No.: ",+datos!B1) -> LICITACIÓN No.: | C6: F. INICIO | D6: =IF(+datos!B6="","",+datos!B6) ->  | E6: F. TERMINO | F6: =IF(+datos!B7="","",+datos!B7) ->  | G6: PLAZO: | H6: =CONCATENATE(+datos!B8, " DIAS NATURALES.") -> 120 DIAS NATURALES.
A7: =+datos!B9 -> TERMINACION DE 25(VEINTICINCO) RECAMARA ADICIONALES DE 16.65 M2 URBANA A BASE DE LOSA DE CIMENTACIÓN, MUROS DE BLOCK, TECHO DE VIGUETA E INSTALACIONES ELÉCTRICAS, EN LA OCALIDAD DE HUASABAS, SONORA. | C7: (Nombre o razón social del licitante) | G7: (Nombre y firma del apoderado Legal)
D10: CANTIDADES DE OBRA, PRECIOS UNITARIOS E IMPORTES
A11: CLAVE | B11: DESCRIPCIÓN | C11: UNIDAD | D11: CANTIDAD | E11: P. UNIT. CON NUMERO | F11: PRECIO UNIT. CON LETRA | G11: IMPORTE | I11: =+datos!B4 -> 0
A13: LOSA DE CIMENTACIÓN | D13: PESOS 00/100 M.N.**
A14: =+Hoja4!C3 -> PC-01U | B14: Limpia, trazo y nivelación. | C14: =+Hoja4!E3 -> M2 | D14: 0 | E14: =+PRE!G3 -> 0 | G14: =D14*E14 -> 0 | I14: =+OPUS!G3 -> 16.65 | J14: 44.56 | K14: =+I14*$I$11 -> 0
A15: =+Hoja4!C4 -> PC-02U | B15: Excavación a mano en terreno investigado en obra, cualquier profundidad, incluye afine de taludes y acarreo fuera de la obra de material no utilizable. | C15: =+Hoja4!E4 -> M3 | D15: 0 | E15: =+PRE!G4 -> 0 | G15: 0 | I15: =+OPUS!G4 -> 0.26 | J15: 9.88 | K15: =+I15*$I$11 -> 0
A16: =+Hoja4!C5 -> PC-05U | B16: Losa de Cimentación de 9 cm de espesor, a base de concreto F'c=200 kg/cm2; t.m.a. 3/4" hecho en obra; reforzado con malla electrosoldada 6x6-10/10, cadena perimetral a base de armex de 15x20 cm; anclaje a base de bastones con varilla corrugada 3/8" grado 42 o 5/16 DA 6000 @ 30 con 40 cm de largo donde se indique en los planos de proyecto, acabado pulido, incluye: fumigacion antitermitas con fumigante aditivo adherente termidor o similar, curado, vibrado, colado y todo lo necesario para su correcta ejecución. | C16: =+Hoja4!E5 -> M2 | D16: 0 | E16: =+PRE!G5 -> 0 | G16: 0 | I16: =+OPUS!G5 -> 16.65 | J16: 8.91 | K16: 0
A17: =+Hoja4!C6 -> PC-06U | B17: Impermeabilización a base de producto epóxico color negro aplicado sobre los 12 cm del desplante incluye: materiales, mano de obra, herramienta y equipo necesarios para su correcta ejecución. | C17: =+Hoja4!E6 -> Ml | D17: 0 | E17: =+PRE!G6 -> 0 | G17: 0 | I17: =+OPUS!G6 -> 13.98 | J17: 8.91 | K17: 0
D18: LOSA DE CIMENTACIÓN | G18: =+SUM(G14:H17) -> 0
A21: MUROS
A22: =+Hoja4!C9 -> MC-01U | B22: Construcción de muro de block de 12x20x40 cm junteado con mortero cemento arena proporción 1:4, incluye; Muro de enrase, plomeado, relleno de huecos en contorno de ventanas a base de concreto F´c= 150 kg/cm2 hecho en obra t.m.a. 3/4", materiales, mano de obra, herramienta, equipo, deberá quedar acabado comun. | C22: =+Hoja4!E9 -> M2 | D22: 0 | E22: =+PRE!G8 -> 0 | G22: =D22*E22 -> 0 | I22: =+OPUS!G8 -> 32.06 | J22: 79.68 | K22: =+I22*$I$11 -> 0
A23: =+Hoja4!C10 -> MC-02U | B23: Castillo K-1 de concreto F´c=150 kg/cm2 hecho en obra t.m.a. 3/4", 12x12 cm de sección, armado con armex 12x12-4; incluye: cimbra aparente y descimbra; fabricación, colado y curado del concreto; materiales y mano de obra, deberá de quedar con acabado final aparente. | C23: =+Hoja4!E10 -> Ml | D23: 0 | E23: =+PRE!G9 -> 0 | G23: =D23*E23 -> 0 | I23: =+OPUS!G9 -> 9.06 | J23: 43.46 | K23: 0
A24: =+Hoja4!C11 -> MC-02UA | B24: Castillo K-2 ahogados de 2.50 ML de altura incluye el pretil, con concreto F´c=150 kg/cm2 hecho en obra t.m.a. 3/4", con una varilla corrugada de refuerzo de 3/8"; armado, colado y vibrado del concreto; materiales y mano de obra,. | C24: =+Hoja4!E11 -> Ml | D24: 0 | E24: =+PRE!G10 -> 0 | G24: 0 | I24: =+OPUS!G10 -> 9.09 | J24: 40.16 | K24: 0
A25: =+Hoja4!C12 -> MC-03U | B25: Cadena de cerramiento de concreto F´c=200 kg/cm2 hecho en obra t.m.a. 3/4", 12x20 cm de sección, armada con armex 12X20-4; incluye: cimbra aparente y descimbra; fabricación, colado y curado del concreto; materiales y mano de obra, deberá de quedar con acabado final aparente. | C25: =+Hoja4!E12 -> Ml | D25: 0 | E25: =+PRE!G11 -> 0 | G25: =D25*E25 -> 0 | I25: =+OPUS!G11 -> 15.84 | J25: 40.16 | K25: =+I25*$I$11 -> 0
D26: MUROS | G26: =+SUM(G22:H25) -> 0
A29: TECHO
A30: =+Hoja4!C17 -> CU-01U | B30: Losa aligerada de 16 cm de espesor, a base de bovedilla de poliestireno y vigueta de alma abierta con armadura de acero diseño 10-36 de la marca deacero o similar, con patín de 12 cm de ancho por 5 cm de peralte, colado de capa de compresión de 4 cm con concreto F'c=200 kg/cm2, t.m.a. 3/4", reforzado malla electrosoldada de 6x6-10/10, el concepto incluye: afine de la superficie superior con acabado semipulido para recibir impermeabilización, cimbra y descimbra aparente, colado, vibrado, curado y todo lo necesario para su correcta ejecución. Para la ejecucion de este concepto el beneficiario aportara el importe de 4,000 pesos en la compra de los materiales alambre recocido, curacreto, malla electrosoldada 6x6 - 10/10, Vigueta alma abierta con armadura 12-36 y Bovedilla de poliestireno de 61x122 x11 cms de espesor; volado de 15x10 cms armado con varilla longitudinal de 3/8" y bastones de 40 cms de longitud a cada 30 cms y gotero a base de tuino de madera de 1" (2.54 cms) | C30: =+Hoja4!E17 -> M2 | D30: =+'PRE (2)'!F13 -> 81.47 | E30: =+'PRE (2)'!G13 -> 0 | G30: =D30*E30 -> 0 | I30: 17.26 | J30: 46.07 | K30: =+I30*$I$11 -> 0
A31: =+Hoja4!C18 -> CU-02U | B31: Impermeabilización de losa de azotea a base de impermeabilizante elastomerico de 3 años de garantía,a razón de 1 m2/lt, y tela reforzada, incluye: 3 manos de impermeabilizante , limpieza y preparación de la superficie. | C31: =+Hoja4!E17 -> M2 | D31: =+'PRE (2)'!F14 -> 431.5 | E31: =+'PRE (2)'!G14 -> 0 | G31: =D31*E31 -> 0 | I31: 17.26 | J31: 46.07 | K31: 0
A32: =+'PRE (2)'!C15 -> CU-03U | B32: =+'PRE (2)'!D15 -> Fabricacion de entortado a base de mortero cemento-arena 1:3 con gravilla en un espesor promedio de 4 cms. , terminado fino para recibir impermeabilizacion el concepto incluye: Aditivo tipo Darahuel o similar, fibra de polipropileno, materiales, mano de obra, equipo y todo lo necesario para su correcta ejecucion. | C32: =+'PRE (2)'!E15 -> M2 | D32: =+'PRE (2)'!F15 -> 431.5 | E32: =+'PRE (2)'!G15 -> 0 | G32: 0
A33: =+'PRE (2)'!C16 -> CU-04U | B33: =+'PRE (2)'!D16 -> Fabricacion de chaflan de 2.54 cm (1") a base de mortero cemento - arena 1:3 el concepto incluye aditivo darahuel o similar, materiales, mano de obra, herramienta, equipo y todo lo necesario para su correcta ejecucion. | C33: =+'PRE (2)'!E16 -> ML | D33: =+'PRE (2)'!F16 -> 103.09 | E33: =+'PRE (2)'!G16 -> 0 | G33: 0
D34: TECHO | G34: =SUM(G30:H33) -> 0
A37: ACABADOS
A38: =+Hoja4!C21 -> AC-03U | B38: Aplanado de yeso en plafones, de 1.5 cm de espesor promedio, a plomo y regla, acabado pulido, reforzada con malla pollera en toda el área incluye: perfilado de aristas y remate en columnas, trabes y muros. | C38: =+Hoja4!E21 -> M2 | D38: =+'PRE (2)'!F18 -> 368.75 | E38: =+'PRE (2)'!G18 -> 0 | G38: =D38*E38 -> 0 | I38: 14.75 | K38: =+I38*$I$11 -> 0
A39: =+Hoja4!C23 -> AC-14U | B39: Pintura vinílica lavable en muros exteriores, interiores y plafond de yeso, incluye: material, limpieza, rebabeado, preparación de la superficie, aplicación de sellador vinílico y dos manos de pintura. | C39: =+Hoja4!E23 -> M2 | D39: =+'PRE (2)'!F19 -> 2302.5 | E39: =+'PRE (2)'!G19 -> 0 | G39: 0 | I39: 92.1 | K39: 0
A40: =+Hoja4!C24 -> AC-13U | B40: Aplanado grueso en muros exteriores e interiores a base de mortero cemento arena 1:4 en un espesor minimo de 1.5 cms , y terminado fino floteado con mortero cemento-arena 1:3 incluye: perfilado de aristas, remates, material, mano de obra y emboquillado. | C40: =+Hoja4!E24 -> m2 | D40: =+'PRE (2)'!F20 -> 1933.75 | E40: =+'PRE (2)'!G20 -> 0 | G40: =D40*E40 -> 0 | I40: 77.35 | K40: =+I40*$I$11 -> 0
D41: ACABADOS | G41: =+SUM(G38:H40) -> 0
A44: PUERTAS Y VENTANAS
A45: =+Hoja4!C26 -> PV-04U | B45: Suministro y colocación de ventana corrediza de 0.83x1.05m a base de perfil de aluminio anodizado natural de 1 1/2" con cristal claro de 3mm con un fijo lateral y un corredizo, incluye: perfilado del hueco, previo a su colocación a base de mortero cemento-arena proporción 1:4. silicon, Herramienta, mano de obra y todo lo necesario para su correcta ejecución. | C45: =+Hoja4!E26 -> Pza | D45: =+'PRE (2)'!F22 -> 15 | E45: =+'PRE (2)'!G22 -> 0 | G45: =D45*E45 -> 0 | I45: =+Hoja4!F26 -> 1 | J45: 1 | K45: =+I45*$I$11 -> 0
A46: =+Hoja4!C27 -> PV-06U | B46: Suministro e instalación de puerta de 0.90x2.10 mts, tipo multypanel lisa, fabricado con hoja de acero liso galvanizado cal. 28, con bastidor de madera de pino estufado, terminado en color blanco, relleno de esouma rigida de poliuretano con una densidad de 32 a 34 kg/m3 .,incluye marco metálico fabricado a base de perfil tubular M-225,chapa tipo bola con llave para exterior modelo MH52T3 marca fanal o similar acabado en latón brillante para exterior, dos bisagras de 3", pintura esmalte anticorrosivo color blanco, perfilado del hueco previo a su colocación con mortero cemento-arena 1:4. Herramienta, mano de obra y todo lo necesario para su correcta ejecución. | C46: =+Hoja4!E27 -> Pza | D46: =+'PRE (2)'!F23 -> 20 | E46: =+'PRE (2)'!G23 -> 0 | G46: 0 | I46: =+Hoja4!F27 -> 1 | J46: 2 | K46: 0
D47: PUERTAS Y VENTANAS | G47: =+SUM(G42:H46) -> 0
A48: =+Hoja4!D28 -> INSTALACIONES ELECTRICAS | B48: =+Hoja4!D28 -> INSTALACIONES ELECTRICAS | C48: =+Hoja4!E28 -> 0 | D48: =+K48 -> 0 | G48: 0 | I48: =+Hoja4!F28 -> 0 | J48: 1 | K48: 0
A49: IE-02U | B49: Salida eléctrica para tomacorriente, incluye; Contacto doble, tapa, poliducto eléctrico, cableado, ranurado, sujeción de poliducto, mano de obra y equipo. | C49: Sal | D49: =+'PRE (2)'!F25 -> 25 | E49: =+'PRE (2)'!G25 -> 0 | G49: 0 | I49: 1 | J49: 3 | K49: 0
A50: IE-03U | B50: Salida eléctrica para apagador sencillo, incluye: tapa de una via, poliducto eléctrico naranja reforzado de 1/2", cableado con cable thw #12, ranurado, resanado con mortero cemento-arena 1:4, sujeción de poliducto, mano de obra y equipo. | C50: Sal | D50: =+'PRE (2)'!F26 -> 25 | E50: =+'PRE (2)'!G26 -> 0 | G50: 0 | I50: 1 | J50: 1 | K50: 0
A51: IE-05U | B51: Salida eléctrica para lámpara, incluye; Roseta de porcelana de 4", cableado con cable thw #12, caja octogonal de 4", con poliducto naranja reforzado de 1/2", cableado, ranurado, resanado con mortero cemento arena 1:4, sujeción de poliducto, mano de obra y equipo. | C51: Sal | D51: =+'PRE (2)'!F27 -> 25 | E51: =+'PRE (2)'!G27 -> 0 | G51: 0 | I51: 1 | J51: 1 | K51: 0
A52: IE-06U | B52: Suministro de foco fluorescente espiral 23 w. De luz fria con 100 W de iluminacion según proyecto, | C52: Pza | D52: =+'PRE (2)'!F28 -> 25 | E52: =+'PRE (2)'!G28 -> 0 | G52: =D52*E52 -> 0 | I52: 1 | J52: 1 | K52: =+I52*$I$11 -> 0
A53: IE-07U | B53: Alimentación eléctrica de la vivienda existente a la recamara adicional para una distancia maxima de 6 mts el concepto incluye; poliducto naranja reforzado, cable thw #12, prueba del funcionamiento de las instalaciones y todo lo necesario para su correcta ejecucion. | C53: Sal, | D53: =+'PRE (2)'!F29 -> 25 | E53: =+'PRE (2)'!G29 -> 0 | G53: =D53*E53 -> 0 | I53: 1 | J53: 1 | K53: 0
D54: INSTALACIONES ELECTRICAS | G54: =SUM(G49:H53) -> 0 | K54: 0
A57: TOTAL DE PRESUPUESTO ** | D57: TOTAL DE PRESUPUESTO | G57: =+G18+G26+G34+G41+G47+G54 -> 0 | I57: =+G57/datos!B4 -> 

Sheet Hoja1 (hidden)
B4: - | C4: Capítulo | E4: CONSTRUCCIÓN DE VIVIENDA DE 44.56 M2, A BASE DE LOSA DE CIMENTACIÓN, MUROS DE BLOCK, TECHO DE VIGUETA Y BOVEDILLA, INSTALACIONES ELÉCTRICAS, HIDRÁULICAS Y SANITARIAS. | I4: 116600
B5: - | C5: Subcapítulo | E5: LOSA DE CIMENTACIÓN | I5: 21033.97
C6: Concepto | D6: PC-01 | E6: Limpia, trazo y nivelación. | F6: M2 | G6: 44.56 | H6: 9.45 | I6: 421.09
C7: Concepto | D7: PC-02 | E7: Excavación a mano en terreno investigado en obra, cualquier profundidad, incluye afine de taludes y acarreo fuera de la obra de material no utilizable. | F7: M3 | G7: 9.88 | H7: 117.4 | I7: 1159.91
C8: Concepto | D8: PC-03 | E8: Suministro de material de banco, bajo firmes, incluyendo producción, derechos, fletes, suministro en obra, acarreos en obra y afine. (volumen medido compacto). | F8: M3 | G8: 8.91 | H8: 140 | I8: 1247.4
C9: Concepto | D9: PC-04 | E9: Relleno y compactado de material con pisón de mano y agua en capas de espesor máximo de 20 cm, incluye acarreo en carretilla libre a 20 m. | F9: M3 | G9: 8.91 | H9: 65.66 | I9: 585.03
C10: Concepto | D10: PC-05 | E10: Losa de Cimentación de 9 cm de espesor, a base de concreto F'c=200 kg/cm2; t.m.a. 3/4" hecho en obra; reforzado con malla electrosoldada 6x6-10/10, plantilla de 5 cm de espesor a base de concreto F'c=100 kg/cm2 t.m.a. 3/4", dentellón perimetral e intermedio a base de armex de 15x20 cm; anclaje a base de bastones con varilla 3/8" @ 30 con 40 cm de largo donde se indique en los planos de proyecto, acabado pulido, incluye curado, vibrado, colado y todo lo necesario para su correcta ejecución. | F10: M2 | G10: 44.56 | H10: 373.14 | I10: 16627.12
C11: Concepto | D11: PC-06 | E11: Impermeabilización a base de producto epóxico color negro aplicado sobre los 12 cm del desplante y 20 cm del espesor de la losa y dentellón perimetral en todo el perímetro, incluye: materiales, mano de obra, herramienta y equipo necesarios para su correcta ejecución. | F11: ML | G11: 26.9 | H11: 36.93 | I11: 993.42
B12: - | C12: Subcapítulo | E12: MUROS | I12: 29572.67
C13: Concepto | D13: MC-04 | E13: Construcción de muro de block de 12x20x40 cm junteado con mortero cemento arena proporción 1:4, incluye: Muro de enrase, plomeado, relleno de huecos en contorno de ventanas a base de concreto F´c= 150 kg/cm2 hecho en obra t.m.a. 3/4", materiales, mano de obra, herramienta, equipo y todo lo necesario para su correcta ejecución. | F13: M2 | G13: 81.04 | H13: 219.73 | I13: 17806.92
C14: Concepto | D14: MC-05 | E14: Castillo de concreto F´c=150 kg/cm2 hecho en obra t.m.a. 3/4", 12x12 cm de sección, armado con armex 12x12-4; incluye: Cimbra y descimbra; fabricación, colado y curado del concreto; materiales, mano de obra, equipo y todo lo necesario para su correcta ejecución. | F14: ML | G14: 43.38 | H14: 134.97 | I14: 5855
C15: Concepto | D15: MC-06 | E15: Cadena de cerramiento de concreto F´c=150 kg/cm2 hecho en obra t.m.a. 3/4", 12x20 cm de sección, armada con armex 12X20-4; incluye: Cimbra y descimbra; fabricación, colado y curado del concreto; materiales, mano de obra, equipo y todo lo necesario para su correcta ejecución. | F15: ML | G15: 40.16 | H15: 147.18 | I15: 5910.75
B16: - | C16: Subcapítulo | E16: CUBIERTA | I16: 27898.15
C17: Concepto | D17: CU-01 | E17: Losa aligerada de 15 cm de espesor, a base de bovedilla de poliestireno y vigueta de alma abierta con armadura de acero diseño 10-36 de la marca deacero o similar, con patín de 12 cm de ancho por 5 cm de peralte, colado de capa de compresión de 4 cm con concreto F'c=200 kg/cm2, t.m.a. 3/4", reforzado malla electrosoldada de 6x6-10/10, el concepto incluye: afine de la superficie superior con acabado semipulido para recibir impermeabilización, cimbra y descimbra aparente, volado de concreto de 0.19 x 0.10 m, armado de con varilla de 3/8", 1 varilla longitudinal y bastones @ .30m de .40m de longitud, colado, vibrado, curado y todo lo necesario para su correcta ejecución. | F17: M2 | G17: 46.07 | H17: 471.13 | I17: 21704.96
C18: Concepto | D18: CU-02 | E18: Impermeabilización de losa de azotea a base de impermeabilizante elastomerico marca termoteck o similar de 3 años de garantía, a razón de 1 m2/lt, y tela de refuerzo sencillo, incluye limpieza y preparación de la superficie. | F18: M2 | G18: 46.07 | H18: 134.43 | I18: 6193.19
B19: - | C19: Subcapítulo | E19: ACABADOS | I19: 7729.03
C20: Concepto | D20: AC-01 | E20: Aplanado de yeso en plafones, de 1.5 cm de espesor promedio, a plomo y regla, acabado pulido, reforzada con malla pollera en toda el área incluye: perfilado de aristas y remate en columnas, trabes y muros. | F20: M2 | G20: 39.71 | H20: 144.56 | I20: 5740.48
C21: Concepto | D21: AC-02 | E21: Sardinel de 10x10 cm a base de concreto hidráulico de F'c=150 kg/cm2 t.m.a. 3/4",con anclas de varilla corrugada de 3/8" según especificaciones de proyecto. Incluye: Herramienta, mano de obra y todo lo necesario para su correcta ejecución. | F21: ML | G21: 1.92 | H21: 78.08 | I21: 149.91
C22: Concepto | D22: AC-03 | E22: Suministro y colocación de azulejo de 20x30cm de color blanco de la marca porcelanite o similar asentado con cemento crest o similar, boquilla de 2 mm a base de junta crest anti-hongo o similar. Incluye: Herramienta, mano de obra y todo lo necesario para su correcta ejecución. | F22: M2 | G22: 4 | H22: 249.33 | I22: 997.32
C23: Concepto | D23: AC-04 | E23: Suministro y colocación de piso antiderrapante de 20x20cm de color blanco de la marca porcelanite o similar asentado con cemento crest o similar, boquilla de 2 mm a base de junta crest anti-hongo o similar. Incluye: Herramienta, mano de obra y todo lo necesario para su correcta ejecución. | F23: M2 | G23: 3.75 | H23: 217.32 | I23: 814.95
C24: Concepto | D24: AC-05 | E24: Colocación de placa de cerámica en medidas de 20x20 cm, con cemento crest, en muro de fachada. Incluye; Material, herramienta, mano de obra y todo lo necesario para su correcta ejecución. | F24: M2 | G24: 1 | H24: 26.37 | I24: 26.37
B25: - | C25: Subcapítulo | E25: PUERTAS Y VENTANAS | I25: 10200.63
C26: Concepto | D26: PV-01 | E26: Suministro e instalación de puerta tipo multypanel 0.90x2.06m con marco metálico de 0.96x2.10m fabricado a base de perfil tubular M-225., chapa tipo bola con llave para exterior modelo MH52T3 marca fanal o similar acabado en latón brillante para exterior, dos bisagras de 3", pintura esmalte anticorrosivo color blanco en el marco metálico, el concepto incluye perfilado del hueco previo a su colocación con mortero cemento-arena 1:4. Incluye: Herramienta, mano de obra y todo lo necesario para su correcta ejecución. | F26: PZA | G26: 1 | H26: 1875.8 | I26: 1875.8
C27: Concepto | D27: PV-02 | E27: Suministro e instalación de puerta de tambor 0.80x2.06m con marco metálico de 0.86x2.10m fabricado a base de perfil tubular M-225., chapa tipo bola para interior marca fanal o similar, dos bisagras de 3", pintura esmalte anticorrosivo color blanco en el marco metálico, el concepto incluye perfilado del hueco previo a su colocación con mortero cemento-arena 1:4. Incluye: Herramienta, mano de obra y todo lo necesario para su correcta ejecución. | F27: PZA | G27: 2 | H27: 1066.69 | I27: 2133.38
C28: Concepto | D28: PV-03 | E28: Suministro e instalación de puerta de tambor 0.70x2.06m con marco metálico de 0.76x2.10m fabricado a base de perfil tubular M-225., chapa tipo bola para interior marca fanal o similar, dos bisagras de 3", pintura esmalte anticorrosivo color blanco en el marco metálico, el concepto incluye perfilado del hueco previo a su colocación con mortero cemento-arena 1:4. Incluye: Herramienta, mano de obra y todo lo necesario para su correcta ejecución. | F28: PZA | G28: 1 | H28: 996.58 | I28: 996.58
C29: Concepto | D29: PV-04 | E29: Suministro y colocación de ventana corrediza de 0.83x1.05m a base de perfil de aluminio anodizado natural de 1 1/2" con cristal claro de 3mm con un fijo lateral y un corredizo, incluye perfilado del hueco, previo a su colocación a base de mortero cemento-arena proporción 1:4. Incluye: Herramienta, mano de obra y todo lo necesario para su correcta ejecución. | F29: PZA | G29: 3 | H29: 987.18 | I29: 2961.54
C30: Concepto | D30: PV-05 | E30: Suministro y colocación de ventana corrediza de 0.60x0.40m a base de perfil de aluminio anodizado natural de 1 1/2" con cristal claro de 3mm con un fijo lateral y un corredizo, incluye perfilado del hueco previo a su colocación a base de mortero cemento-arena proporción 1:4. Incluye: Herramienta, mano de obra y todo lo necesario para su correcta ejecución. | F30: PZA | G30: 1 | H30: 698.79 | I30: 698.79
C31: Concepto | D31: PV-06 | E31: Suministro e instalación de puerta tipo multypanel 0.80x2.06m con marco metálico de 0.86x2.10m fabricado a base de perfil tubular M-225., chapa tipo bola con llave para exterior modelo MH52T3 marca fanal o similar acabado en latón brillante para exterior, dos bisagras de 3", pintura esmalte anticorrosivo color blanco en el marco metálico, el concepto incluye perfilado del hueco previo a su colocación con mortero cemento-arena 1:4. Incluye: Herramienta, mano de obra y todo lo necesario para su correcta ejecución. | F31: PZA | G31: 1 | H31: 1534.54 | I31: 1534.54
B32: - | C32: Subcapítulo | E32: INSTALACIONES ELÉCTRICAS | I32: 7635.94
C33: Concepto | D33: IE-01 | E33: Suministro y colocación de centro de carga de dos circuitos con una pieza de interruptor sencillo de 1x30 amperes, tubería galvanizada conduit pared delgada de 3/4", el concepto incluye ranurado, resanado con mortero cemento-arena 1:4, prueba del correcto funcionamiento de las instalaciones y todo lo necesario para su correcto funcionamiento. | F33: PZA | G33: 1 | H33: 481.41 | I33: 481.41
C34: Concepto | D34: IE-02 | E34: Salida eléctrica para tomacorriente, incluye; Contacto doble, tapa, poliducto eléctrico, cableado con cable thw #12, ranurado, sujeción de poliducto, mano de obra y equipo. | F34: SAL | G34: 9 | H34: 358.32 | I34: 3224.88
C35: Concepto | D35: IE-03 | E35: Salida eléctrica para apagador sencillo, incluye: tapa de una via, poliducto eléctrico naranja reforzado de 1/2", cableado con cable thw #12, ranurado, resanado con mortero cemento-arena 1:4, sujeción de poliducto, mano de obra y equipo. | F35: SAL | G35: 3 | H35: 310.39 | I35: 931.17
C36: Concepto | D36: IE-04 | E36: Salida eléctrica para apagador doble, incluye; tapa de dos vías, poliducto eléctrico naranja reforzado de 1/2", cableado con cable thw #12, ranurado, resanado con mortero cemento-arena 1:4, sujeción de poliducto, mano de obra y equipo. | F36: SAL | G36: 2 | H36: 355.65 | I36: 711.3
C37: Concepto | D37: IE-05 | E37: Salida eléctrica para lámpara, incluye; cableado con cable thw #12, caja octogonal de 4", con poliducto naranja reforzado de 1/2", cableado, ranurado, resanado con mortero cemento-arena 1:4, sujeción de poliducto, mano de obra y equipo. | F37: SAL | G37: 7 | H37: 279.08 | I37: 1953.56
C38: Concepto | D38: IE-06 | E38: Suministro e instalación de foco incandescente de 100 watts según proyecto, incluye: la roseta de porcelana de 4" y todo lo necesario para su correcta instalación. | F38: PZA | G38: 7 | H38: 47.66 | I38: 333.62
B39: - | C39: Subcapítulo | E39: INSTALACIONES HIDRÁULICAS Y SANITARIAS | I39: 12529.61
C40: Concepto | D40: IHS-05 | E40: Salidas para instalación sanitaria de 1 1/2", 2" y 4" para ventila, lavabo, sanitario, tarja y regadera, tubería de pvc, conexiones, pegamento, ranurado, resanado con mortero cemento-arena 1:4, pendiente, materiales, mano de obra, herramienta y equipo. | F40: SAL | G40: 5 | H40: 364.4 | I40: 1822
C41: Concepto | D41: IHS-07 | E41: Salidas para instalación hidráulica para regadera agua fría y caliente, lavabo, sanitario, tarja o zinc, con tubería cpvc de 1/2" marca duralon o similar, el concepto incluye: 2 Dispositivos economizadores de agua (DISEA M) marca EEFIMEX ó similar en regadera y lavabo, limpieza, conexiones, ranurado, pendiente, materiales, mano de obra, herramienta, equipo, resanado con mortero cemento-arena 1:4, prueba del correcto funcionamiento de las instalaciones y todo lo necesario para su correcto funcionamiento. | F41: SAL | G41: 5 | H41: 442.83 | I41: 2214.15
C42: Concepto | D42: IHS-08 | E42: Suministro e instalación de sanitario marca lamosa o similar línea económica en color blanco, incluye asiento, pijas, cuello de cera, manguera flexible, llave cromada de 1/2". | F42: PZA | G42: 1 | H42: 1567.81 | I42: 1567.81
C43: Concepto | D43: IHS-09 | E43: Suministro e instalación de lavabo marca lamosa o similar línea económica en color blanco, incluye: Llave mezcladora marca helvex o similar línea económica, juego de patas, soportes, manguera flexible, llave cromada de 1/2", cespol bote. | F43: PZA | G43: 1 | H43: 1203.52 | I43: 1203.52
C44: Concepto | D44: IHS-10 | E44: Suministro e instalación de regadera línea económica incluye llaves de empotrar, manerales, brazo y chapetón. | F44: PZA | G44: 1 | H44: 1723.06 | I44: 1723.06
C45: Concepto | D45: IHS-11 | E45: Construcción de registro sanitario de 46x45cm de medida interna, a base de ladrillo recocido común de la región de 7x14x28 cm, junteado con mortero cal-arena 1:5 + 10% de cemento, base y tapa a base de concreto F'c=150 kg/cm2 con t.m.a. 3/4" reforzado con malla electrosoldada 6x6-10/10 el concepto incluye: enjarre interior con mortero cemento-arena 1:3, fabricación y colocación de dos jaladeras para la tapa a base de alambrón de 1/4", con pases a base de poliducto de 1/2". y todo lo necesario para su correcta ejecución. | F45: PZA | G45: 1 | H45: 671.94 | I45: 671.94
C46: Concepto | D46: IHS-12 | E46: Suministro e instalación de tinaco de 600 lt de la marca rotoplas o similar con el sistema de 3 capas para garantizar una vida útil de 35 años, con todos los accesorios como jarro de aire, flotador #5, válvula de llenado ¾", multiconector con válvula de esfera, tuerca unión y válvula check, incluye base para nivelar tinaco (detalle plano), la alimentación hidráulica por medio de tubería cpvc de 1/2" y todo lo necesario para su correcto funcionamiento. | F46: PZA | G46: 1 | H46: 2027.04 | I46: 2027.04
C47: Concepto | D47: IHS-13 | E47: Suministro e instalación de lavadero doble de empotrar, el concepto incluye; firme de concreto sencillo, murete de block de 12x20x40 cm, segun proyecto, la salida sanitaria con tubería pvc de 2" y la salida hidráulica con tubería cpvc de 1/2", llave de jardín de 1/2", dispositivo economizador de agua (DISEA M) marca EEFIMEX ó similar, resanado con mortero cemento-arena 1:4 y todo lo necesario para su correcto funcionamiento. | F47: PZA | G47: 1 | H47: 1300.09 | I47: 1300.09

Sheet Hoja2 (hidden)

Sheet Hoja3 (hidden)

Sheet Hoja4 (hidden)
A1: - | B1: Capítulo | D1: CONSTRUCCIÓN DE RECAMARA ADICIONAL DE 16.48 M2 URBANA A BASE DE LOSA DE CIMENTACIÓN, MUROS DE BLOCK, TECHO DE VIGUETA E INSTALACIONES ELÉCTRICAS, EN LOS MUNICIPIOS DE SONORA.
A2: - | B2: Subcapítulo | C2: 1.- | D2: LOSA DE CIMENTACION
B3: Concepto | C3: PC-01U | D3: Limpia, trazo y nivelación. | E3: M2 | F3: 16.48
B4: Concepto | C4: PC-02U | D4: Excavación a mano en terreno investigado en obra, cualquier profundidad, incluye afine de taludes y acarreo fuera de la obra de material no utilizable. | E4: M3 | F4: 0.38
B5: Concepto | C5: PC-05U | D5: Losa de Cimentación de 9 cm de espesor, a base de concreto F'c=200 kg/cm2; t.m.a. 3/4" hecho en obra; reforzado con malla electrosoldada 6x6-10/10, plantilla de 5 cm de espesor a base de concreto F'c=100 kg/cm2 t.m.a. 3/4", dentellón perimetral e intermedio a base de armex de 15x20 cm; anclaje a base de bastones con varilla corrugada 3/8" grado 42 o 5/16 DA 6000 @ 30 con 40 cm de largo donde se indique en los planos de proyecto, acabado pulido, incluye: fumigacion antitermitas con fumigante aditivo adherente termidor o similar, curado, vibrado, colado y todo lo necesario para su correcta ejecución. | E5: M2 | F5: 16.48
B6: Concepto | C6: PC-06U | D6: Impermeabilización a base de producto epóxico color negro aplicado sobre los 12 cm del desplante y 20 cm del espesor de la losa y dentellón perimetral en todo el perímetro, incluye: materiales, mano de obra, herramienta y equipo necesarios para su correcta ejecución. | E6: Ml | F6: 15.76
B7: Concepto | C7: PC-07U | D7: Afine, nivelacion y compactacion de terreno natural para desplante de losa de cimentacio, incluye todo lo necesario para su correcta ejecucion. | E7: M2 | F7: 16.48
A8: - | B8: Subcapítulo | C8: 2.- | D8: ALBAÑILERIA
B9: Concepto | C9: MC-01U | D9: Construcción de muro de block de 12x20x40 cm junteado con mortero cemento arena proporción 1:4, incluye; Muro de enrase, plomeado, relleno de huecos en contorno de ventanas a base de concreto F´c= 150 kg/cm2 hecho en obra t.m.a. 3/4", materiales, mano de obra, herramienta, equipo, con boquilla cortada a hueso. | E9: M2 | F9: 30.55
B10: Concepto | C10: MC-02U | D10: Castillo K-1 de concreto F´c=150 kg/cm2 hecho en obra t.m.a. 3/4", 12x12 cm de sección, armado con armex 12x12-4; incluye: cimbra aparente y descimbra; fabricación, colado y curado del concreto; materiales y mano de obra, deberá de quedar con acabado final aparente. | E10: Ml | F10: 10.06
B11: Concepto | C11: MC-02UA | D11: Castillo K-2 ahogados de 2.50 ML de altura incluye el pretil, con concreto F´c=150 kg/cm2 hecho en obra t.m.a. 3/4", con una varilla corrugada de refuerzo de 3/8"; armado, colado y vibrado del concreto; materiales y mano de obra,. | E11: Ml | F11: 10.03
B12: Concepto | C12: MC-03U | D12: Cadena de cerramiento de concreto F´c=150 kg/cm2 hecho en obra t.m.a. 3/4", 12x20 cm de sección, armada con armex 12X20-4; incluye: cimbra aparente y descimbra; fabricación, colado y curado del concreto; materiales y mano de obra, deberá de quedar con acabado final aparente. | E12: Ml | F12: 15.76
B13: Concepto | C13: MC-04U | D13: Construcción de pretil a base de block de 12x20x40 cm junteado con mortero cemento arena proporción 1:4, incluye; plomeado, relleno de huecos en parte superior y en parte inferior para nivelar con concreto F´c= 150 kg/cm2 hecho en obra t.m.a. 3/4", materiales, mano de obra, herramienta, equipo, con boquilla cortada a hueso. | E13: M2 | F13: 4.03
B14: Concepto | C14: MC-05U | D14: Construcción de diamantes a base de mortero cemento-arena 1:4 2.5 cm de e spesor promedio acabado floteado para recibir impermeabilizacion, incluye trazo y ejecucion de pendientes, elevacion de materiales hasta 3.00 m, material, herramienta y mano de obra. | E14: m2 | F14: 2.27
B15: Concepto | C15: MC-06U | D15: Suministro y Colocacion de gargola tipo cuadrada sencilla incluye demolicion, mortero cemento-arena 1:4 y todo lo necesario para su correcta instalacion. | E15: pza | F15: 2
A16: - | B16: Subcapítulo | C16: 3.- | D16: CUBIERTA
B17: Concepto | C17: CU-01U | D17: Losa aligerada de 15 cm de espesor, a base de bovedilla de poliestireno y vigueta de alma abierta con armadura de acero diseño 10-36 de la marca deacero o similar, con patín de 12 cm de ancho por 5 cm de peralte, colado de capa de compresión de 4 cm con concreto F'c=200 kg/cm2, t.m.a. 3/4", reforzado malla electrosoldada de 6x6-10/10, el concepto incluye: afine de la superficie superior con acabado semipulido para recibir impermeabilización, cimbra y descimbraaparente, colado, vibrado, curado y todo lo necesario para su correcta ejecución. Para la ejecucion de este concepto el beneficiario aportara el importe de 4,000 pesos en la compra de los materiales alambre recocido, curacreto, malla electrosoldada 6x6 - 10/10, Vigueta alma abierta con armadura 10-36 y Bovedilla de poliestireno de 61x122 x11 cms de espesor | E17: M2 | F17: 16.48
B18: Concepto | C18: CU-02U | D18: Impermeabilización de losa de azotea a base de impermeabilizante elastomerico de 3 años de garantía,a razón de 1 m2/lt, y tela de refuerzo sencillo, incluye limpieza y preparación de la superficie. | E18: M2 | F18: 16.48
A19: - | B19: Subcapítulo | C19: 4.- | D19: ACABADOS
B20: Concepto | C20: AC-01U | D20: Chaflán de 10x10 cms. con pasta de cemento-arena prop. 1:4, según detalle indicado en los planos, Incluye: Material, mano de obra, herramienta y todo lo necesario para su correcta ejecución. | E20: ML | F20: 8.92
B21: Concepto | C21: AC-03U | D21: Aplanado de yeso en plafones, de 1.5 cm de espesor promedio, a plomo y regla, acabado pulido, reforzada con malla pollera en toda el área incluye: perfilado de aristas y remate en columnas, trabes y muros. | E21: M2 | F21: 14.59
B22: Concepto | C22: AC-09U | D22: Cemento blanco, en muro de fachada para colocacion de placa Incluye; Material, herramienta, mano de obra y todo lo necesario para su correcta ejecución. | E22: Pza | F22: 1
B23: Concepto | C23: AC-14U | D23: Pintura vinílica lavable en muros y plafond incluye: material, limpieza, rebabeado, preparación de la superficie, aplicación de sellador vinílico y dos manos de pintura. | E23: M2 | F23: 92.95
B24: Concepto | C24: AC-13U | D24: Aplanado de mezcla en muros, a base de mortero cemento arena 1:3, acabado fino floteado , incluye: material, mano de obra, remates y emboquillado. | E24: m2 | F24: 78.36
A25: - | B25: Subcapítulo | C25: 5.- | D25: PUERTAS Y VENTANAS
B26: Concepto | C26: PV-04U | D26: Suministro y colocación de ventana corrediza de 0.83x1.05m a base de perfil de aluminio anodizado natural de 1 1/2" con cristal claro de 3mm con un fijo lateral y un corredizo, incluye perfilado del hueco, previo a su colocación a base de mortero cemento-arena proporción 1:4. Incluye: Herramienta, mano de obra y todo lo necesario para su correcta ejecución. | E26: Pza | F26: 1
B27: Concepto | C27: PV-06U | D27: Suministro e instalación de puerta de 0.90x2.10 mts, tipo multypanel lisa, fabricado con hoja de acero liso galvanizado cal. 28, con bastidor de madera de pino estufado, terminado en color blanco, relleno de esouma rigida de poliuretano con una densidad de 32 a 34 kg/m3 .,incluye marco metálico fabricado a base de perfil tubular M-225,chapa tipo bola con llave para exterior acabado en latón brillante para exterior, dos bisagras de 3", pintura esmalte anticorrosivo color blanco, perfilado del hueco previo a su colocación con mortero cemento-arena 1:4. Herramienta, mano de obra y todo lo necesario para su correcta ejecución. | E27: Pza | F27: 1
A28: - | B28: Subcapítulo | C28: 6.- | D28: INSTALACIONES ELECTRICAS
B29: Concepto | C29: IE-02U | D29: Salida eléctrica para tomacorriente, incluye; Contacto doble, tapa, poliducto eléctrico, cableado, ranurado, sujeción de poliducto, mano de obra y equipo. | E29: Sal | F29: 1
B30: Concepto | C30: IE-03U | D30: Salida eléctrica para apagador sencillo, incluye: tapa de una via, poliducto eléctrico naranja reforzado de 1/2", cableado con cable thw #12, ranurado, resanado con mortero cemento-arena 1:4, sujeción de poliducto, mano de obra y equipo. | E30: Sal | F30: 1
B31: Concepto | C31: IE-05U | D31: Salida eléctrica para lámpara, incluye; la roseta de porcelana de 4" , cableado con cable thw #12, caja octogonal de 4", con poliducto naranja reforzado de 1/2", cableado, ranurado, resanado con mortero cemento arena 1:4, sujeción de poliducto, mano de obra y equipo. | E31: Sal | F31: 1
B32: Concepto | C32: IE-06U | D32: Suministro de foco fluorescente espiral 23 w. De luz fria con 100 W de iluminacion según proyecto, | E32: Pza | F32: 1

Sheet datos (hidden)
A1: NUMERO
A2: LOCALIDAD
A3: MUNICIPIO
A4: ACCIONES
A6: F.INICIO | H6: =+H5+1 -> 1 | I6: =CHAR(H6) -> 
A7: F.TERMINO | B7: =IF(+B6="","",+B6+B8-1) ->  | H7: 2 | I7: 
A8: PLAZO | B8: 120 | H8: 3 | I8: 
A9: DESCRIPCION | B9: TERMINACION DE 25(VEINTICINCO) RECAMARA ADICIONALES DE 16.65 M2 URBANA A BASE DE LOSA DE CIMENTACIÓN, MUROS DE BLOCK, TECHO DE VIGUETA E INSTALACIONES ELÉCTRICAS, EN LA OCALIDAD DE HUASABAS, SONORA.
A10: F. PRESENTACION

Sheet OPUS (hidden)
A1: - | B1: Capítulo | E1: CONSTRUCCIÓN DE RECAMARA ADICIONAL DE 16.65 M2 URBANA A BASE DE LOSA DE CIMENTACIÓN, MUROS DE BLOCK, TECHO DE VIGUETA E INSTALACIONES ELÉCTRICAS, EN LOS MUNICIPIOS DE SONORA. | I1: 52000
A2: - | B2: Subcapítulo | C2: 1.- | E2: LOSA DE CIMENTACION | I2: 8056.64
B3: Concepto | C3: PC-01U | D3: ESP-PC01 | E3: Limpia, trazo y nivelación. | F3: M2 | G3: 16.65 | I3: 199.8
B4: Concepto | C4: PC-02U | D4: ESP-PC02 | E4: Excavación a mano en terreno investigado en obra, cualquier profundidad, incluye afine de taludes y acarreo fuera de la obra de material no utilizable. | F4: M3 | G4: 0.26 | I4: 32.98
B5: Concepto | C5: PC-05U | D5: ESP-PC05 | E5: Losa de Cimentación de 9 cm de espesor, a base de concreto F'c=200 kg/cm2; t.m.a. 3/4" hecho en obra; reforzado con malla electrosoldada 6x6-10/10, cadena perimetral a base de armex de 15x20 cm; anclaje a base de bastones con varilla corrugada 3/8" grado 42 o 5/16 DA 6000 @ 30 con 40 cm de largo donde se indique en los planos de proyecto, acabado pulido, incluye: fumigacion antitermitas con fumigante aditivo adherente termidor o similar, curado, vibrado, colado y todo lo necesario para su correcta ejecución. | F5: M2 | G5: 16.65 | I5: 7592.07
B6: Concepto | C6: PC-06U | D6: ESP-PC06 | E6: Impermeabilización a base de producto epóxico color negro aplicado sobre los 12 cm del desplante incluye: materiales, mano de obra, herramienta y equipo necesarios para su correcta ejecución. | F6: Ml | G6: 13.98 | I6: 231.79
A7: - | B7: Subcapítulo | C7: 2.- | E7: ALBAÑILERIA | I7: 13625.54
B8: Concepto | C8: MC-01U | D8: ESP-MC01 | E8: Construcción de muro de block de 12x20x40 cm junteado con mortero cemento arena proporción 1:4, incluye; Muro de enrase, plomeado, relleno de huecos en contorno de ventanas a base de concreto F´c= 150 kg/cm2 hecho en obra t.m.a. 3/4", materiales, mano de obra, herramienta, equipo, deberá quedar acabado comun. | F8: M2 | G8: 32.06 | I8: 9168.84
B9: Concepto | C9: MC-02U | D9: ESP-MC02 | E9: Castillo K-1 de concreto F´c=150 kg/cm2 hecho en obra t.m.a. 3/4", 12x12 cm de sección, armado con armex 12x12-4; incluye: cimbra aparente y descimbra; fabricación, colado y curado del concreto; materiales y mano de obra, deberá de quedar con acabado final aparente. | F9: Ml | G9: 9.06 | I9: 1292.59
B10: Concepto | C10: MC-02UA | D10: ESP-MC02A | E10: Castillo K-2 ahogados de 2.50 ML de altura incluye el pretil, con concreto F´c=150 kg/cm2 hecho en obra t.m.a. 3/4", con una varilla corrugada de refuerzo de 3/8"; armado, colado y vibrado del concreto; materiales y mano de obra,. | F10: Ml | G10: 9.09 | I10: 394.96
B11: Concepto | C11: MC-03U | D11: ESP-MC03 | E11: Cadena de cerramiento de concreto F´c=200 kg/cm2 hecho en obra t.m.a. 3/4", 12x20 cm de sección, armada con armex 12X20-4; incluye: cimbra aparente y descimbra; fabricación, colado y curado del concreto; materiales y mano de obra, deberá de quedar con acabado final aparente. | F11: Ml | G11: 15.84 | I11: 2769.15
A12: - | B12: Subcapítulo | C12: 3.- | E12: CUBIERTA | I12: 10680.66
B13: Concepto | C13: CU-01U | D13: ESP-CU01 | E13: Losa aligerada de 16 cm de espesor, a base de bovedilla de poliestireno y vigueta de alma abierta con armadura de acero diseño 10-36 de la marca deacero o similar, con patín de 12 cm de ancho por 5 cm de peralte, colado de capa de compresión de 4 cm con concreto F'c=200 kg/cm2, t.m.a. 3/4", reforzado malla electrosoldada de 6x6-10/10, el concepto incluye: afine de la superficie superior con acabado semipulido para recibir impermeabilización, cimbra y descimbra aparente, colado, vibrado, curado y todo lo necesario para su correcta ejecución. Para la ejecucion de este concepto el beneficiario aportara el importe de 4,000 pesos en la compra de los materiales alambre recocido, curacreto, malla electrosoldada 6x6 - 10/10, Vigueta alma abierta con armadura 12-36 y Bovedilla de poliestireno de 61x122 x11 cms de espesor; volado de 15x10 cms armado con varilla longitudinal de 3/8" y bastones de 40 cms de longitud a cada 30 cms y gotero a base de tuino de madera de 1" (2.54 cms) | F13: M2 | G13: 17.26 | I13: 9529.25
B14: Concepto | C14: CU-02U | D14: ESP-CU02 | E14: Impermeabilización de losa de azotea a base de impermeabilizante elastomerico de 3 años de garantía,a razón de 1 m2/lt, y tela reforzada, incluye: 3 manos de impermeabilizante , limpieza y preparación de la superficie. | F14: M2 | G14: 17.26 | I14: 1151.41
A15: - | B15: Subcapítulo | C15: 4.- | E15: ACABADOS | I15: 15039.06
B16: Concepto | C16: AC-03U | D16: ESP-AC03 | E16: Aplanado de yeso en plafones, de 1.5 cm de espesor promedio, a plomo y regla, acabado pulido, reforzada con malla pollera en toda el área incluye: perfilado de aristas y remate en columnas, trabes y muros. | F16: M2 | G16: 14.75 | I16: 2606.77
B17: Concepto | C17: AC-14U | D17: ESP-AC14 | E17: Pintura vinílica lavable en muros exteriores, interiores y plafond de yeso, incluye: material, limpieza, rebabeado, preparación de la superficie, aplicación de sellador vinílico y dos manos de pintura. | F17: M2 | G17: 92.1 | I17: 1645.83
B18: Concepto | C18: AC-13U | D18: ESP-AC13 | E18: Aplanado grueso en muros exteriores e interiores a base de mortero cemento arena 1:4 en un espesor minimo de 1.5 cms , y terminado fino floteado con mortero cemento-arena 1:3 incluye: perfilado de aristas, remates, material, mano de obra y emboquillado. | F18: m2 | G18: 77.35 | I18: 10786.46
A19: - | B19: Subcapítulo | C19: 5.- | E19: PUERTAS Y VENTANAS | I19: 3085.56
B20: Concepto | C20: PV-04U | D20: ESP-PV04U | E20: Suministro y colocación de ventana corrediza de 0.83x1.05m a base de perfil de aluminio anodizado natural de 1 1/2" con cristal claro de 3mm con un fijo lateral y un corredizo, incluye: perfilado del hueco, previo a su colocación a base de mortero cemento-arena proporción 1:4. silicon, Herramienta, mano de obra y todo lo necesario para su correcta ejecución. | F20: Pza | G20: 1 | I20: 1007.57
B21: Concepto | C21: PV-06U | D21: ESP-PV06U | E21: Suministro e instalación de puerta de 0.90x2.10 mts, tipo multypanel lisa, fabricado con hoja de acero liso galvanizado cal. 28, con bastidor de madera de pino estufado, terminado en color blanco, relleno de esouma rigida de poliuretano con una densidad de 32 a 34 kg/m3 .,incluye marco metálico fabricado a base de perfil tubular M-225,chapa tipo bola con llave para exterior modelo MH52T3 marca fanal o similar acabado en latón brillante para exterior, dos bisagras de 3", pintura esmalte anticorrosivo color blanco, perfilado del hueco previo a su colocación con mortero cemento-arena 1:4. Herramienta, mano de obra y todo lo necesario para su correcta ejecución. | F21: Pza | G21: 1 | I21: 2077.99
A22: - | B22: Subcapítulo | C22: 6.- | E22: INSTALACIONES ELECTRICAS | I22: 1512.54
B23: Concepto | C23: IE-02U | D23: ESP-IE02 | E23: Salida eléctrica para tomacorriente, incluye; Contacto doble, tapa, poliducto eléctrico, cableado, ranurado, sujeción de poliducto, mano de obra y equipo. | F23: Sal | G23: 1 | I23: 320.48
B24: Concepto | C24: IE-03U | D24: ESP-IE03 | E24: Salida eléctrica para apagador sencillo, incluye: tapa de una via, poliducto eléctrico naranja reforzado de 1/2", cableado con cable thw #12, ranurado, resanado con mortero cemento-arena 1:4, sujeción de poliducto, mano de obra y equipo. | F24: Sal | G24: 1 | I24: 356.55
B25: Concepto | C25: IE-05U | D25: ESP-IE05 | E25: Salida eléctrica para lámpara, incluye; Roseta de porcelana de 4", cableado con cable thw #12, caja octogonal de 4", con poliducto naranja reforzado de 1/2", cableado, ranurado, resanado con mortero cemento arena 1:4, sujeción de poliducto, mano de obra y equipo. | F25: Sal | G25: 1 | I25: 443.02
B26: Concepto | C26: IE-06U | D26: ESP-IE06 | E26: Suministro de foco fluorescente espiral 23 w. De luz fria con 100 W de iluminacion según proyecto, | F26: Pza | G26: 1 | I26: 41.99
B27: Concepto | C27: IE-07U | D27: ESP-IE07 | E27: Alimentación eléctrica de la vivienda existente a la recamara adicional para una distancia maxima de 6 mts el concepto incluye; poliducto naranja reforzado, cable thw #12, prueba del funcionamiento de las instalaciones y todo lo necesario para su correcta ejecucion. | F27: Sal, | G27: 1 | I27: 350.5
